{"text_format":"1","workbook":"xlsx","n_sheets":1,"sheets":["Sheet1 (2)"],"not_rendered":{"charts":0,"images":3,"macros":0,"external_links":1,"defined_names":408,"comments":0,"pivot_tables":0},"unopened":[],"bounds":{"document_bytes":16777216,"sheet_cells":100000,"rows_first":2000,"rows_last":500,"rows_between":2000,"halvings":0,"cell_chars":16384,"cell_head_chars":4096},"cells_cut":0,"cells_raw":0,"read":"whole","date_system":"1900"}

{"sheet":"Sheet1 (2)","index":0,"n_rows":471,"n_cols":8,"rows_kept":471,"cut":false,"hidden":false,"merged":[[470,0,470,7],[469,0,469,7],[4,0,4,7],[5,0,5,7]]}
[]
[]
[]
[]
["INSTITUTO SUPERIOR DE FORMACION DOCENTE SALOME UREÑA"]
["RELACION DE ESTADO DE CUENTAS DE SUPLIDORES "]
[]
["Corresp. Mayo 2024",null,null,null,null,null,"Fecha de creación","2024-06-14"]
["Recinto","Fecha de Registro","No. de Factura o Comprobante","Nombre del Acreedor","Concepto"," Monto de la Deuda RD$ ","Terminos de pago (días)","Fecha de Vencimiento"]
[{"$f":"MID(E10,1,3)","v":"REC"},"2024-05-20","B1500000032","1955 GENERAL BUSINESS BIENES Y SERV. SRL.","REC-ADQUISICION DE CINTA DE IMPRESIÓN, SEGUN ORDEN 2024-00167",238011.9,"45 Dias","2024-07-04"]
[{"$f":"MID(E11,1,3)","v":"REC"},"2024-05-22","B1500000033","1955 GENERAL BUSINESS BIENES Y SERV. SRL.","REC-ADQUISICION DE EQUIPOS DE LIMPIEZA  ORDEN 2024-00158",357840.9,"45 Dias","2024-07-06"]
["FEM","2024-05-21","B1500000692","ABASTECIMIENTOS COMERCIALES FJJ","FEM-COMPRA DE PAPEL TOALLA PARA USO DEL RECINTO (PENDIENTE DE RECIBIR)",139004,"45 Dias","2024-07-05"]
["FEM","2024-05-27","B1500000697","ABASTECIMIENTOS COMERCIALES FJJ","FEM-COMPRA DE PAPEL TOALLA PARA USO DEL RECINTO (PENDIENTE DE RECIBIR)",208506,"45 Dias","2024-07-11"]
["JVM","2017-09-20","A010010011500000609","AD MARKETING LIVE,S.R.L.","JVM-REFRIGERIO Y ALMUERZO",52392,"45 Dias","2017-11-04"]
["REC","2017-12-01","A010010011500000607","AD MARKETING LIVE,S.R.L.","REC-CATERING ACTIVIDADES VARIAS",44745.599999999999,"45 Dias","2018-01-15"]
["REC","2023-11-23","B1500000118","ADOARH","REC-ADQUISICION DE CUPOS PARA CONGRESO NACIONAL DE GESTION HUMANA",125000,"45 Dias","2024-01-07"]
["FEM","2024-02-20","B1500000466","AGROGLOBAL EXPORT E IMPORT, SRL","FEM- COMPRA DE ALIMENTOS OR.2023-0418",64800,"45 Dias","2024-04-05"]
["FEM","2024-03-04","B1500000473","AGROGLOBAL EXPORT E IMPORT, SRL","FEM- COMPRA DE ALIMENTOS OR.2023-00712",62000,"45 Dias","2024-04-18"]
["FEM","2024-03-19","B1500000486","AGROGLOBAL EXPORT E IMPORT, SRL","FEM- COMPRA DE ALIMENTOS OR.2023-00712. (PENDIENTE DE RECIBIR)",49250,"45 Dias","2024-05-03"]
["FEM","2024-04-08","B1500000497","AGROGLOBAL EXPORT E IMPORT, SRL","FEM- COMPRA DE ALIMENTOS PARA LA OPERATIVIDAD DEL RECINTO",86300,"45 Dias","2024-05-23"]
["FEM","2024-04-19","B1500000502","AGROGLOBAL EXPORT E IMPORT, SRL","FEM- COMPRA DE ALIMENTOS PARA LA OPERATIVIDAD DEL RECINTO  OR.2023-0712",9800,"45 Dias","2024-06-03"]
["FEM","2024-05-16","B1500000518","AGROGLOBAL EXPORT E IMPORT, SRL","FEM- COMPRA DE ALIMENTOS (PENDIENTE DE RECIBIR)",64750,"45 Dias","2024-06-30"]
["FEM","2024-05-27","B1500000528","AGROGLOBAL EXPORT E IMPORT, SRL","FEM- COMPRA DE ALIMENTOS (PENDIENTE DE RECIBIR)",58850,"45 Dias","2024-07-11"]
["FEM","2018-02-15","A010010011500075097","Agua Crystal, S.A.","FEM-COMPRA DE AGUA PURIFICADA 5 GL",12150,"45 Dias","2018-04-01"]
["FEM","2018-02-21","A010010011500075240","Agua Crystal, S.A.","FEM-COMPRA DE AGUA PURIFICADA 5GL",10152,"45 Dias","2018-04-07"]
["FEM","2018-03-07","A010010011500075569","Agua Crystal, S.A.","FEM-COMPRA AGUA PURIFICADA 5GL",11124,"45 Dias","2018-04-21"]
["FEM","2022-05-04","B1500036033","Agua Crystal, S.A.","FEM-COMPRA DE AGUA",13509,"45 Dias","2022-06-18"]
["FEM","2024-04-01","B1500173244","AGUA PLANETA AZUL","FEM-COMPRA DE BOTELLONES DE AGUA. OR.2023-00651",14400,"45 Dias","2024-05-16"]
["FEM","2024-04-10","B1500173524","AGUA PLANETA AZUL","FEM-COMPRA DE BOTELLONES DE AGUA. OR. 2023-00651",17280,"45 Dias","2024-05-25"]
["FEM","2024-04-18","B1500173852","AGUA PLANETA AZUL","FEM-COMPRA DE BOTELLONES DE AGUA.OR. 2023-00651",10560,"45 Dias","2024-06-02"]
["REC","2024-05-02","B1500173299","AGUA PLANETA AZUL","REC-COMPRA  DE AGUA TETRAPACK 500ML PROCESO CM-2024-0084",61950,"45 Dias","2024-06-16"]
["FEM","2024-05-10","B1500174294","AGUA PLANETA AZUL","FEM-COMPRA DE BOTELLONES DE AGUA (PENDIENTE POR RECIBIR)",9600,"45 Dias","2024-06-24"]
["REC","2024-05-16","B1500174295","AGUA PLANETA AZUL","REC-COMPRA  DE AGUA BOTELLONES PROCESO 2023-0126",5640,"45 Dias","2024-06-30"]
["REC","2024-05-16","B1500174585","AGUA PLANETA AZUL","REC-COMPRA  DE AGUA BOTELLONES PROCESO 2023-0126",4800,"45 Dias","2024-06-30"]
["FEM","2024-05-16","B1500174584","AGUA PLANETA AZUL","FEM-COMPRA DE BOTELLONES DE AGUA (PENDIENTE POR RECIBIR)",16800,"45 Dias","2024-06-30"]
["REC","2024-05-31","B1500174973","AGUA PLANETA AZUL","REC-COMPRA  DE AGUA BOTELLONES PROCESO 2023-0126",12120,"45 Dias","2024-07-15"]
["JVM","2024-03-07","B1500000236","AGUAS NACIONALES DOMINIC, SRL","JVM-COMPRAS DE AGUA PARA USO DEL RECINTO",23625,"45 Dias","2024-04-21"]
["JVM","2024-04-12","B1500000237","AGUAS NACIONALES DOMINIC, SRL","JVM-COMPRAS DE AGUA PARA USO DEL RECINTO",29205,"45 Dias","2024-05-27"]
["EMH","2016-12-31","A010010011500000052/56/57","Albadoca , S.A.","EMH-FACT A010010011500000052/56/57 del EMH -PERIODO 2014-2015",65050,"45 Dias",{"$f":"+B39+45","v":"2017-02-14"}]
["EMH","2022-03-28","B1500000201","ALEGO COMERCIAL, SRL","EMH - SERVICIO DE MANTENIMIENTO DE VEHICULOS",134190.78,"45 Dias","2022-05-12"]
["FEM","2024-03-12","B1500000332","Ana Maria Petronila Hernández Peguero","FEM-SERVICIOS JURIDICOS OR.2023-00124",9204,"45 Dias","2024-04-26"]
["REC","2024-05-03","B1500000348","Ana Maria Petronila Hernández Peguero","REC-SERVICIOS JURIDICOS ORDEN DE COMPRA 2023-00143",55733.760000000002,"45 Dias","2024-06-17"]
["REC","2024-05-03","B1500000347","Ana Maria Petronila Hernández Peguero","REC-SERVICIOS DE NOTARIZACION DE 14 CONTRATOS",14449.38,"45 Dias","2024-06-17"]
["FEM","2024-01-04","B1500000062","ANTELO DOMINICANA SRL","FEM-ALIMENTOS P/ LOS ESTUDIANTES ORDEN 2023-00733",9265,"45 Dias","2024-02-18"]
["FEM","2024-02-28","B1500000032","APPETITUS RD, SRL","FEM--SERVICIO DE CATERING",293182.8,"45 Dias","2024-04-13"]
["REC","2024-02-28","B1500000033","APPETITUS RD, SRL","REC- SERVICIOS DE CATERING.",737169.6,"45 Dias","2024-04-13"]
["REC","2024-03-11","B1500000035","APPETITUS RD, SRL","REC- SERVICIOS DE REFRIGERIOS Y ALMUERZO PARA ACTIVIDADES DE INTEGRACION",162840,"45 Dias","2024-04-25"]
["REC","2024-04-01","B1500000036","APPETITUS RD, SRL","REC- SERVICIOS DE REFRIGERIOS, DESAYUNO Y ALMUERZO PARA ACTIVIDADES DE DIRECTORES OR. 2024-00011",589799.4,"45 Dias","2024-05-16"]
["REC","2024-04-01","B1500000037","APPETITUS RD, SRL","REC- SERVICIOS DE REFRIGERIOS, DESAYUNO Y ALMUERZO PARA  ACTIVIDADES DE DIRECTORES OR. 2024-00730",661036,"45 Dias","2024-05-16"]
["FEM","2024-04-03","B1500000038","APPETITUS RD, SRL","FEM- SERVICIOS DE CATERING PARA TALLER DE DEFENSA PERSONAL OR. 2023-00590",169377.2,"45 Dias","2024-05-18"]
["REC","2024-04-03","B1500000034","APPETITUS RD, SRL","REC- SERVICIOS DE CATERING PARA DIFERENTES ACTIVIDADES A REALIZAR POR LA DIRECCION DE EXT. EN LO...",151040,"45 Dias","2024-05-18"]
["REC","2024-04-17","B15000000008","ASOC. DE INST. EDUCATIVAS PRIVADAS AINEP","REC-CONTRATACION PARA CONFERENCIA PARA 20 DIRECTORES DE LAS ESCUELAS DE PARACTICAS Y PERSONAL DE...",50000,"45 Dias","2024-06-01"]
["REC","2024-04-09","284/24 A","ASOC. UNIVERS. IBEROAMERICANA DE POSTGRAD","REC- CUOTA ANUAL 2024 EU$ 1,500. A UNA TASA DE 65.2766",97914.9,"45 Dias","2024-05-24"]
["REC","2015-09-18","A010010011500000050","Asoc.Dom.de Rectores de Universidades","REC-PARTICIPACION DE 5 COLABORADORES SEMINARIO REFORMA CURRICULAR. 17 SEPT. 2016",20000,"45 Dias","2015-11-02"]
["FEM","2024-02-16","B1500000129","Augustos DS, SRL","FEM-COMPRA DE ALIMENTOS",21968,"45 Dias","2024-04-01"]
["EMH","2024-04-05","B1500000137","Augustos DS, SRL","EMH-COMPRA DEALIMENTOS PARA CONSUMO DE LOS ESTUDIANTES ORD. 2023-00753",42172.87,"45 Dias","2024-05-20"]
["FEM","2024-04-05","B1500000135","Augustos DS, SRL","FEM-COMPRA DE ALIMENTOS PARA LOS ESTUDIANTES DEL RECINTO",214104,"45 Dias","2024-05-20"]
["FEM","2024-04-05","B1500000139","Augustos DS, SRL","FEM-COMPRA DE ALIMENTOS PARA LOS ESTUDIANTES DEL RECINTO (PENDIENTE)",93400,"45 Dias","2024-05-20"]
["EMH","2024-04-05","B1500000130","Augustos DS, SRL","EMH-COMPRA DE ALIMENTOS PARA LOS ESTUDIANTES DEL RECINTO OR.2023-00659",34361.599999999999,"45 Dias","2024-05-20"]
["EMH","2024-04-16","B1500000140","Augustos DS, SRL","EMH-COMPRA DE ALIMENTOS PARA LOS ESTUDIANTES DEL RECINTO OR.2023-00659",39270.400000000001,"45 Dias","2024-05-31"]
["REC","2023-08-15","B1500000428","Capacitacion Especializada (CAES)","REC-SERVICIO DE CAPACITACION (PENDIENTE DE RECIBIR)",185900,"45 Dias","2023-09-29"]
["JVM","2020-01-29","B1500000245","CENPA COMERCIAL , SRL","JVM-COMPRA DE ALIMENTOS (PENDIENTE ESPERA DE EXPEDIENTE)",39189.120000000003,"45 Dias","2020-03-14"]
["FEM","2020-01-29","B1500000248","CENPA COMERCIAL , SRL","FEM-COMPRA DE ALIMENTOS (PENDIENTE ESPERA DE EXPEDIENTE)",8760,"45 Dias","2020-03-14"]
["REC","2024-05-21","B1500001791","CENTRO DE FRENOS DAVID, SRL","REC-SERVICIO DE MANTENIMIENTO DE VEHICULOS FLOTILLA VEHICULAR",2360,"45 Dias","2024-07-05"]
["REC","2024-05-21","B1500001792","CENTRO DE FRENOS DAVID, SRL","REC-SERVICIO DE MANTENIMIENTO DE VEHICULOS FLOTILLA VEHICULAR",6166,"45 Dias","2024-07-05"]
["REC","2024-05-21","B1500001793","CENTRO DE FRENOS DAVID, SRL","REC-SERVICIO DE MANTENIMIENTO DE VEHICULOS FLOTILLA VEHICULAR",8260,"45 Dias","2024-07-05"]
["REC","2024-05-21","B1500001794","CENTRO DE FRENOS DAVID, SRL","REC-SERVICIO DE MANTENIMIENTO DE VEHICULOSFLOTILLA VEHICULAR",12098,"45 Dias","2024-07-05"]
["REC","2024-05-21","B1500001795","CENTRO DE FRENOS DAVID, SRL","REC-SERVICIO DE MANTENIMIENTO DE VEHICULOS FLOTILA VEHICULAR",67762,"45 Dias","2024-07-05"]
["REC","2024-05-21","B1500001796","CENTRO DE FRENOS DAVID, SRL","REC-SERVICIO DE MANTENIMIENTO DE VEHICULOS FLOTILLA VEHICULAR",12900,"45 Dias","2024-07-05"]
["REC","2024-05-21","B1500001797","CENTRO DE FRENOS DAVID, SRL","REC-SERVICIO DE MANTENIMIENTO DE VEHICULOS FLOTILLA VEHICULAR",9258,"45 Dias","2024-07-05"]
["REC","2024-05-21","B1500001798","CENTRO DE FRENOS DAVID, SRL","REC-SERVICIO DE MANTENIMIENTO DE VEHICULOS FLOTILLA VEHICULAR",354,"45 Dias","2024-07-05"]
["REC","2024-05-21","B1500001799","CENTRO DE FRENOS DAVID, SRL","REC-SERVICIO DE MANTENIMIENTO DE VEHICULOS FLOTILLA VEHICULAR",7901,"45 Dias","2024-07-05"]
["REC","2024-05-03","B1500000061","CENTRO DE INV. ECON. DEL NORTE(CIEN), SRL","REC-CONTRATACION DE CAPACITACIONES PARA EMPLEADOS DE LA RECTORIA DEL ISFODOSU",168500,"45 Dias","2024-06-17"]
["REC","2024-05-16","B1500003201","CENTROXPERT,  SRL","REC-ADQUISICION DE CAMARAS WEB PARA EL ISFODOSU",355875.36,"45 Dias","2024-06-30"]
["REC","2021-08-19","B1500000009","CHECKPOINT DOMINICANA SRL","REC-COMPRA DE DISPENSADOR DE GEL CON TERMOMETRO Y LUZ",45878.400000000001,"45 Dias",{"$f":"+B74+45","v":"2024-06-30"}]
[{"$f":"MID(E76,1,3)","v":"EMH"},"2016-12-31","A010010011500000011","Cigoil Caribe, S.A.","EMH-FACT A010010011500000011 DEL EMH / D/F 16/11/2015",15939,"45 Dias",{"$f":"+B75+45","v":"2021-10-03"}]
["FEM","2016-12-31","A020020021500000020","Circuit Worl, srl","FEM-FACT A020020021500000020 DEL FEM D/F 25/02/2015",61900.02,"45 Dias",{"$f":"+B76+45","v":"2017-02-14"}]
["REC","2024-03-21","B1500000028","COBROS EMPRESARIALES Y BANCARIOS COBRIA,","REC-SERVICIO DE NOTIFICACIÓN DE ACTO",39600.800000000003,"45 Dias","2024-05-05"]
["REC","2024-04-15","B1500000029","COBROS EMPRESARIALES Y BANCARIOS COBRIA,","REC-SERVICIO DE NOTIFICACIÓN DE ACTO",19800.400000000001,"45 Dias","2024-05-30"]
["REC","2024-05-31","CINV003574","COLLEGE BOARD","REC- PRUEBAS ELASH I Y ELASH II, ABRIL 2024 (PENDIENTE DE RECIBIR) USD 7,200.72 A UNA TASA DOP 5...",429162.91,"45 Dias","2024-07-15"]
["UM","2024-04-18","B1500001198","COMERCIAL BENZAN HERRERA, SRL","UM- ADQ. DE CEREALES Y CARBOHIDRATOS PARA CONSUMO DE LOS ESTUDIANTES",23400,"45 Dias","2024-06-02"]
["UM","2024-04-18","B1500001203","COMERCIAL BENZAN HERRERA, SRL","UM- ADQ. DE ALIMENTOS PARA CONSUMO DE LOS ESTUDIANTES INTERNOS Y SEMI-INTERNOS",226001.1,"45 Dias","2024-06-02"]
["UM","2024-04-18","B1500001202","COMERCIAL BENZAN HERRERA, SRL","UM- ADQ. DE CEREALES Y CARBOHIDRATOS PARA CONSUMO DE LOS ESTUDIANTES INTERNOS Y SEMI-INTERNOS",99824,"45 Dias","2024-06-02"]
["UM","2024-04-24","B1500001210","COMERCIAL BENZAN HERRERA, SRL","UM- ADQ. DE ARTICULOS DE LIMPIEZA E HIGIENE PARA USO EN LAS DIFERENTES AREAS DEL RECINTO",136762,"45 Dias","2024-06-08"]
["LNM","2023-02-02","B1500000147","COMERCIAL CODI, SRL","LNM- COMPRA DE ALIMENTOS PARA ESTUDIANTES",100473.27,"45 Dias","2023-03-19"]
["EMH","2023-03-01","B1500000150","COMERCIAL CODI, SRL","EMH-ADQUISICION DE ALIMENTOS PARA USO DEL RECINTO. OR-2022-00590",34350,"45 Dias","2023-04-15"]
["UM","2023-04-18","B1500000151","COMERCIAL CODI, SRL","UM-ADQUISICION DE ALIMENTOS PARA USO DEL RECINTO. OR-2023-00033",16200,"45 Dias","2023-06-02"]
["UM","2023-05-04","B1500000152","COMERCIAL CODI, SRL","UM-ADQUISICION DE ALIMENTOS PARA USO DEL RECINTO. OR-2023-00033",11400,"45 Dias","2023-06-18"]
["UM","2023-06-01","B1500000154","COMERCIAL CODI, SRL","UM-ADQUISICION DE VIVERES PARA CONSUMO DE LOS ESTUDIANTES",11400,"45 Dias","2023-07-16"]
["EMH","2023-06-01","B1500000156","COMERCIAL CODI, SRL","EMH-ADQUISICION DE ALIMENTOS PARA CONSUMO DE LOS ESTUDIANTES",32330,"45 Dias","2023-07-16"]
["JVM","2023-06-01","B1500000155","COMERCIAL CODI, SRL","JVM- COMPRA DE ALIMENTOS PARA EL RECINTO OR-2022-00599 (PENDIENTE POR RECIBIR)",40676,"45 Dias","2023-07-16"]
["UM","2023-06-07","B1500000157","COMERCIAL CODI, SRL","UM- COMPRA DE ALIMENTOS. (PENDIENTE DE RECIBIR)",12800,"45 Dias","2023-07-22"]
["JVM","2023-07-03","B1500000159","COMERCIAL CODI, SRL","JVM- COMPRA DE ALIMENTOS PARA EL RECINTO",55400,"45 Dias","2023-08-17"]
["JVM","2023-07-19","B1500000160","COMERCIAL CODI, SRL","JVM- COMPRA DE ALIMENTOS PARA EL RECINTO OR. 2022-599",34400,"45 Dias","2023-09-02"]
["REC","2024-05-16","B1500000120","COMERCIAL FENIX ESPINAL, SRL","REC-ADQUISICIÓN DE INSUMOS DE LIMPIEZA ORDEN DE COMPRA 2024-00150",59153.64,"45 Dias","2024-06-30"]
["EPH","2024-04-02","B1500000571","COMERCIALIZADORA LANIPSE","EPH-COMPRA DE ALIMENTOS (AGUA) OR. 2023-000411",19504,"45 Dias","2024-05-17"]
["EPH","2024-04-25","B1500000575","COMERCIALIZADORA LANIPSE","EPH-COMPRA DE ALIMENTOS (AGUA) BOTELLONES OR.2023-000411",14904,"45 Dias","2024-06-09"]
["EPH","2024-05-21","B1500000576","COMERCIALIZADORA LANIPSE","EPH-COMPRA DE ALIMENTOS Y BEBIDAS OR. 2023-000411",11270,"45 Dias","2024-07-05"]
["REC","2024-05-10","E450000043146","Compañía Dominicana de Teléfono","REC- SERVICIO DE TELEFONO CTA. NO. 734699053",32174.86,"45 Dias","2024-06-24"]
["REC","2024-05-10","E450000043104","Compañía Dominicana de Teléfono","REC- SERVICIO DE COMUNICACIÓN , CUENTA 711982560, MAYO 2024",1770920.59,"45 Dias","2024-06-24"]
["REC","2024-05-27","E450000044615","Compañía Dominicana de Teléfono","REC- SERVICIO DE COMUNICACIÓN , CUENTA 751071915, ABRIL 2024",103044.5,"45 Dias","2024-07-11"]
["REC","2024-03-25","E450000055691","Compañía Dominicana de Teléfono","COMPRA DE ACCESS POINT PARA TODOS LOS RECINTOS DEL ISFODOSU.",3342981.67,"45 Dias",{"$f":"+Table1[[#This Row],[Fecha de Registro]]+45","v":"2024-05-09"}]
["REC","2024-05-09","E450000000116","Compu Office Dominicana SRL","REC- COMPRA DE TONERS PARA USO DE LA INSTITUTUCION",23356,"45 Dias","2024-06-23"]
["EPH","2024-05-24","B1500000248","DAMIAN MIGUEL ANGEL TAVARES REYES","EPH-SERVICIOS DE TRANSPORTE PARA LAS DIVERSAS ACTIVIDADES DEL RECINTO",128594.75,"45 Dias","2024-07-08"]
["FEM","2023-02-06","B1500000154","DEALCORP INVESMENT, SRL","FEM-COMPRA DE ALIMENTOS PARA USO DEL RECINTO",81624.5,"45 Dias","2023-03-23"]
["FEM","2023-03-06","B1500000156","DEALCORP INVESMENT, SRL","FEM-ADQUISICION DE INSUMOS ALIMENTICIOS PARA USO DEL RECINTO",82902.5,"45 Dias","2023-04-20"]
["FEM","2023-04-21","B1500000158","DEALCORP INVESMENT, SRL","FEM-ADQUISICION DE INSUMOS ALIMENTICIOS PARA USO DEL RECINTO (PENDIENTE ESPERA DE EXPEDIENTE)",54850,"45 Dias","2023-06-05"]
["FEM","2023-05-15","B0400000003","DEALCORP INVESMENT, SRL","FEM-NOTA DE CREDITO AFECTA FACTURA B1500000154",-7940,"45 Dias",{"$f":"+B108+45","v":"2023-06-29"}]
["FEM","2023-05-15","B0400000004","DEALCORP INVESMENT, SRL","FEM- NC AFECTA NCF: B1500000156",-270,"45 Dias",{"$f":"+B109+45","v":"2023-06-29"}]
["EPH","2024-05-13","B1500000681","DI PARTES Y MECANICA DIESEL SRL","EPH-SERVICIO DE MANTENIMIENTO Y/O REPARACION DE VEHICULO OR. 2023-00054",26727,"45 Dias","2024-06-27"]
["LNM","2024-05-15","B1500000682","DI PARTES Y MECANICA DIESEL SRL","LNM-SERVICIO DE MANTENIMIENTO Y/O REPARACION DE VEHICULO OR. 2020-00152",60298,"45 Dias","2024-06-29"]
["EPH","2024-05-17","B1500000683","DI PARTES Y MECANICA DIESEL SRL","EPH-SERVICIO DE MANTENIMIENTO Y/O REPARACION DE VEHICULO OR. 2023-00054",12213,"45 Dias","2024-07-01"]
["EPH","2024-05-21","B1500000685","DI PARTES Y MECANICA DIESEL SRL","EPH-SERVICIO DE MANTENIMIENTO Y/O REPARACION DE VEHICULO OR. 2023-00054",47459.6,"45 Dias","2024-07-05"]
["JVM","2024-05-15","B1500000215","Difo Electromecanica, SRL","JVM-ADQUISICION DE SERVICIO DE MANTENIMIENTO Y REPARACION DE CUARTO FRIO Y AIRES ACONDICIONADO",93100,"45 Dias","2024-06-29"]
["REC","2024-05-15","B1500000225","Difo Electromecanica, SRL","REC-CONTRATACION DE SERVICIO DE MANTENIMIENTO, POR UN AÑO, PARA LOS GENERADORES ELECTRICOS PERTE...",123500,"45 Dias","2024-06-29"]
["UM","2024-04-09","B1500002859","Distribuidora PDs, SRL","UM-ADQUISICION DE ALIMENTOS CRUDOS PARA LA RACION ALIMENTARIA DE LOS ESTUDIANTES",2207518.94,"45 Dias","2024-05-24"]
["UM","2024-04-09","B1500002860","Distribuidora PDs, SRL","UM-ADQUISICION DE ALIMENTOS CRUDOS PARA LA RACION ALIMENTARIA DE LOS ESTUDIANTES",2564722.21,"45 Dias","2024-05-24"]
["REC","2024-04-05","B1500000650","DISTRIBUIDORA SERV. DIVERSOS DISOPE SRL","REC-SERVICIO DE IMPRESION DE  INVITACIONES Y CARPETAS PARA EL ISFODOSU",238950,"45 Dias","2024-05-20"]
["REC","2024-05-02","B1500032348","DISTRIBUIDORES INTERN. PETROLEO, S.A.","REC-ADQUISICION DE TICKETS PREPAGOS DE COMBUSTIBLE (PENDIENTE DE RECIBIR)",950000,"45 Dias","2024-06-16"]
["FEM","2024-05-06","B1500032393","DISTRIBUIDORES INTERN. PETROLEO, S.A.","FEM-ADQUISICION DE TICKETS PREPAGOS DE COMBUSTIBLE  OR. 2023-00608",78700,"45 Dias","2024-06-20"]
["JVM","2024-04-30","B1500000424","DITA SERVICES SRL","JVM-ADQUISICION DE SERVICIO DE FUMIGACION Y CONTROL DE PLAGAS POR UN AÑO",17645.54,"45 Dias","2024-06-14"]
["REC","2024-04-22","B1500002491","El Molino Deportivo SRL","REC-ADQUISICION DE EQUIPOS DEPORTIVOS PARA LA RECTORIA Y RECINTO LNM",237245.76,"45 Dias","2024-06-06"]
["JVM","2024-04-08","B1500000421","EL PRIMO COMERCIAL, SRL","JVM-ADQUISICION DE INSTRUMENTOS MUSICALES PARA EL RECINTO OR. 00100-2024",132150,"45 Dias","2024-05-23"]
["REC","2023-06-15","B1500000109","ELDRY KAMILLE BELTRE RAMIREZ","REC- (COMPROBANTE DUPLICADO EMITIDO A OTRA INSTITUCIÓN) SERVICIO DE CATERING PARA REALIZACION DE...",168150,"45 Dias","2023-07-30"]
["REC","2024-03-09","B1500000051","ELVIRA POLANCO DIAZ","REC- SERVICIOS DE CATERING. DIPLOMADO LIDERAZGO PEDAGOGICO. SANTO DOMINGO",227344.7,"45 Dias","2024-04-23"]
["REC","2024-03-16","B1500000052","ELVIRA POLANCO DIAZ","REC- SERVICIO DE CATERING. DIPLOMADO LIDERAZGO PEDAGOGICO. SANTO DOMINGO",227344.7,"45 Dias","2024-04-30"]
["REC","2024-04-01","B1500000048","ELVIRA POLANCO DIAZ","REC- SERVICIO DE CATERING PARA PROGRAMA NACIONAL DE INDUCCION MINERD",227344.7,"45 Dias","2024-05-16"]
["REC","2024-05-02","B1500000053","ELVIRA POLANCO DIAZ","REC- SERVICIOS DE CATERING, PARA ACTIVIDADES DE RECTORIA ORDEN 2024-00014",682080.3,"45 Dias","2024-06-16"]
["UM","2024-05-07","B1500009297","Empresas Miltin SRL","UM-ADQUISICION DE TICKETS DE COMBUSTIBLES PARA LOS VEHICULOS",69615,"45 Dias","2024-06-21"]
["UM","2024-05-07","B1500009296","Empresas Miltin SRL","UM-ADQUISICION DE TICKETS DE COMBUSTIBLES PARA LOS VEHICULOS",100600,"45 Dias","2024-06-21"]
["REC","2024-04-09","B1500000228","ESPARTIMP, SRL","REC-COMPRA DE RELOJES DE ASISTENCIA BIOMETRICOS. ORDEN 2023-00706",348100,"45 Dias","2024-05-24"]
["REC","2020-09-21","B1500000077","ESPECIALIDADES GRAFICAS MORAN & ASOC","REC  SERVICIO DE IMPRESION INFORME EJECUTIVO 2013-2019",178864.4,"45 Dias","2020-11-05"]
["LNM","2024-04-04","B1500000681","EVENTOS SONIA & FELIX, SRL","LNM- SERVICIOS DE CATERING PARA DIFERENTES ACTTIVIDADES ACADEMICA OR.2024-00041",32922,"45 Dias","2024-05-19"]
["LNM","2024-04-11","B1500000684","EVENTOS SONIA & FELIX, SRL","LNM- SERVICIOS DE CATERING PARA DIFERENTES ACTTIVIDADES ACADEMICA OR.2024-00041",410050,"45 Dias","2024-05-26"]
["LNM","2024-05-01","B1500000704","EVENTOS SONIA & FELIX, SRL","LNM- SERVICIOS DE CATERING PARA DIFERENTES ACTTIVIDADES ACADEMICAS Y  RECURSOS HUMANOS OR. 2024-...",48380,"45 Dias","2024-06-15"]
["LNM","2024-05-15","B1500000708","EVENTOS SONIA & FELIX, SRL","LNM- SERVICIOS DE ALIMENTACION PARA EXCURSION (PENDIENTE DE RECIBIR)",48852,"45 Dias","2024-06-29"]
["LNM","2024-05-21","B1500000709","EVENTOS SONIA & FELIX, SRL","LNM- SERVICIOS DE CATERING PARA DIFERENTES ACTTIVIDADES RECURSOS HUMANOS OR. 2024-00041",67968,"45 Dias","2024-07-05"]
["LNM","2024-05-29","B1500000711","EVENTOS SONIA & FELIX, SRL","LNM- SERVICIOS DE ALIMENTACION PARA EXCURSION ORDEN 2024-00041",48852,"45 Dias","2024-07-13"]
["LNM","2016-12-31","A030030010100059788","Ezequiel Bionegym . srl","LNM-FACTAS VARIAS DE Ezequiel Bionegym . srl / LNNM/PERIODO 2015",20975,"45 Dias",{"$f":"+B138+45","v":"2024-07-13"}]
[{"$f":"MID(E140,1,3)","v":"EMH"},"2024-04-01","B1500000049","FAB S JR LIQUORS, SRL","EMH-COMPRA DE ALIMENTOS",60091.360000000001,"45 Dias","2024-05-16"]
["EMH","2024-04-23","B1500000050","FAB S JR LIQUORS, SRL","EMH-COMPRA DE ALIMENTOS PARA LOS ESTUDIANTES OR.2024-00130",196960,"45 Dias","2024-06-07"]
["EMH","2024-05-16","B1500000053","FAB S JR LIQUORS, SRL","EMH-COMPRA DE ALIMENTOS PARA LOS ESTUDIANTES PENDIENTE DE RECIBIR",38710,"45 Dias","2024-06-30"]
["REC","2020-08-03","B1500000095","FAMA ELEVATOR SERVICE, SRL","REC- SERVICIO DE MANTENIMIENTO DE ASCENSORES",8024,"45 Dias","2020-09-17"]
["UM","2024-05-23","B1500016428","FEMARAL , EIRL","UM-ADQUISICION DE INSUMOS PARA TRABAJOS DE REPARACION DE AULAS",20200,"45 Dias","2024-07-07"]
["UM ","2024-05-23","B1500000054","FERNANDO SOLIS ROSARIO","UM - SERVICIOS DE HERRERIA",27140,"45 Dias","2024-07-07"]
["REC","2024-04-22","B1500000164","FESA, SRL","REC-ADQUISICION DE ARTICULOS FERRETEROS ORDEN 2024-00083",43900.51,"45 Dias","2024-06-06"]
["FEM","2024-04-24","B1500003385","Floristeria Zuniflor, SRL","FEM - COMPRA DE ARREGLOS FLORALES (PENDIENTE)",3540,"45 Dias","2024-06-08"]
["FEM","2024-04-24","B1500003384","Floristeria Zuniflor, SRL","FEM - COMPRA DE ARREGLOS FLORALES (PENDIENTE)",3835,"45 Dias","2024-06-08"]
["FEM","2024-05-09","B1500003411","Floristeria Zuniflor, SRL","FEM - COMPRA DE ARREGLOS FLORALES (PENDIENTE DE RECIBIR)",4134,"45 Dias","2024-06-23"]
["JVM","2023-07-31","B1500000177","FUMISMART, SRL","JVM- FUMIGACION, JUNIO 2023",14258.34,"45 Dias","2023-09-14"]
["REC","2024-01-31","24/0101/0070","FUNDACION DE INV. DE LA UNIV. SEVILLA","REC-CORRESPONDIENTE  PAGO AL CONVENIO CI-0000415-2023. EUR1,689.76 A UNA TASA DE RD$65.5774",110810.07,"45 Dias","2024-03-16"]
["REC","2024-01-31","24/0082/0071","FUNDACION DE INV. DE LA UNIV. SEVILLA","REC-CORRESPONDIENTE  PAGO AL CONVENIO CI-0000415-2023. EUR1,268.00 A UNA TASA DE RD$65.5774",83152.14,"45 Dias","2024-03-16"]
["REC","2016-05-30","A010010011500000049","Fundación Educativa Oriental","REC-COSTO CUATRIMESTRE MAYO-AGOSTO 2016 ESTUDIANTE EDDY A. ALMONTE",14450,"45 Dias","2016-07-14"]
["REC","2016-05-30","A010010011500000050","Fundación Educativa Oriental","REC-COSTO CUATRIMESTRE MAYO-AGOSTO 2016 ESTUDIANTE JUAN D. MOLINEAUX",13700,"45 Dias","2016-07-14"]
["REC","2024-04-04","FV/24005166","Fundación General Uni. Valladoli-FUNGE","REC-2DO. PAGO CORRESP. A SEMINARIO EDUCACION FISICA Y SALUD. APRENDIZAJE COOPERATIVO EN EDUC. FI...",141665.76999999999,"45 Dias","2024-05-19"]
["FEM","2023-10-27","B1500017535","Gas Antillanos","FEM- COMPRA DE GAS PARA EL RECINTO. (PENDIENTE)",1741.2,"45 Dias","2023-12-11"]
["LNM","2024-05-07","B0400027069","Gas Antillanos","LNM-Nota de Crédito afectando NCF B1500019259",-3600,"45 Dias",{"$f":"+B156+45","v":"2023-12-11"}]
["LNM","2024-05-07","B1500019259","Gas Antillanos","LNM- COMPRA DE GAS PARA EL RECINTO",119340,"45 Dias","2024-06-21"]
["FEM","2023-03-06","B1500000113","GRUPO ANTACE, SRL.","FEM-ADQUISICION DE INSUMOS ALIMENTICIOS PARA USO DEL RECINTO",6500,"45 Dias","2023-04-20"]
["FEM","2023-03-06","B1500000114","GRUPO ANTACE, SRL.","FEM-ADQUISICION DE INSUMOS ALIMENTICIOS PARA USO DEL RECINTO",2310,"45 Dias","2023-04-20"]
["REC","2024-05-02","B1500000153","GRUPO COMERCIAL BESTYEIN,SRL","REC-ADQUISICION DE INSUMOS DE COCINA",49560,"45 Dias","2024-06-16"]
["REC","2023-09-15","B1500000108","GRUPO DE INVERSIONES READ DOMINGUEZ","REC-SERVICIO DE ALOJAMIENTO ORDEN 2023-00068 PENDIENTE DE RECIBIR",242908.67,"45 Dias","2023-10-30"]
["REC","2023-09-18","B1500000110","GRUPO DE INVERSIONES READ DOMINGUEZ","REC-SERVICIO DE ALOJAMIENTO ORDEN 2023-00068",12145.43,"45 Dias","2023-11-02"]
["REC","2023-10-09","B1500000111","GRUPO DE INVERSIONES READ DOMINGUEZ","REC-SERVICIO DE ALOJAMIENTO ORDEN 2023-00068",109308.9,"45 Dias","2023-11-23"]
["EPH","2024-04-19","B1500000008","GRUPO GARCEL, SRL","EPH-SERVICIOS DE CATERING DIRIGIDO A MYPIMES OR. 202400063",71390,"45 Dias","2024-06-03"]
["EPH","2024-05-29","B1500000017","GRUPO GARCEL, SRL","EPH-CONTRATACIÓN DE SERVICIOS DE CATERING (PENDIENTE DE RECIBIR)",60499.78,"45 Dias","2024-07-13"]
["REC","2024-05-14","B1500000014","GRUPO GARCEL, SRL","REC-SERVICIO DE CATERING PARA DOCENTES DEL PROGRAMA DE INDUCCION DEL MINERD (PENDIENTE DE RECIBIR)",243900.1,"45 Dias",{"$f":"+Table1[[#This Row],[Fecha de Registro]]+45","v":"2024-06-28"}]
["REC","2024-05-25","B1500000016","GRUPO GARCEL, SRL","REC-SERVICIO DE CATERING PARA DOCENTES DEL PROGRAMA DE INDUCCION DEL MINERD (PENDIENTE DE RECIBIR)",243900.1,"45 Dias",{"$f":"+Table1[[#This Row],[Fecha de Registro]]+45","v":"2024-07-09"}]
["REC","2024-03-20","B1500000101","GRUPO LEXMARK SRL","REC- ADQUISICION DE CAMARAS  SEGURIDAD PARA RECINTO UM",1504500,"45 Dias","2024-05-04"]
[{"$f":"+MID([1]!Tabla1[[#This Row],[Concepto]],1,3)","v":{"$error":"#REF!"}},"2023-12-22","B1500000052","GRUPO X-P3 SRL","REC-SERVICIOS DE FOTOGRAFIA ",50000,"45 Dias",{"$f":"+B170+45","v":"2024-02-05"}]
["REC","2024-01-11","B1500003900","GTG Industrial, SRL","REC-ADQUISICION DE ARTICULOS DE LIMPIEZAS Y UTENSULIOS PARA EL COMEDOR",304661.84000000003,"45 Dias","2024-02-25"]
["REC","2024-01-16","B1500003912","GTG Industrial, SRL","REC-ADQUISICION DE ARTICULOS DE LIMPIEZAS Y UTENSULIOS PARA EL COMEDOR",35164,"45 Dias","2024-03-01"]
["FEM","2024-02-06","B1500003942","GTG Industrial, SRL","FEM-ADQUISICION DE ARTICULOS DE LIMPIEZAS",121669.8,"45 Dias","2024-03-22"]
["FEM","2024-04-04","B1500004067","GTG Industrial, SRL","FEM- PRODUCTOS DE LIMPIEZA PARA LA RECTORIA Y FEM",38150.58,"45 Dias","2024-05-19"]
["FEM","2024-05-01","B1500004125","GTG Industrial, SRL","FEM-ADQUISICION DE MATERIAL DE LIMPIEZA  (PENDIENTE DE RECIBIR)",197502.5,"45 Dias","2024-06-15"]
["EMH","2024-05-17","B1500004157","GTG Industrial, SRL","EMH-ADQUISICION DE MATERIAL DE LIMPIEZA  E HIGIENE ORDEN 2024-00169",264164.24,"45 Dias","2024-07-01"]
["FEM","2023-10-06","B1500001371","Hermosillo Comercial, SRL","FEM-ADQUISICION DE ALIMENTOS PARA LOS ESTUDIANTES (PENDIENTE)",9700.1,"45 Dias","2023-11-20"]
["FEM","2023-10-16","B1500001380","Hermosillo Comercial, SRL","FEM-ADQUISICION DE ALIMENTOS PARA LOS ESTUDIANTES (PENDIENTE)",13301,"45 Dias","2023-11-30"]
["JVM","2023-10-25","B1500000554","Hermosillo Comercial, SRL","JVM-ADQUISICION DE ALIMENTOS PARA LOS ESTUDIANTES",71592.960000000006,"45 Dias","2023-12-09"]
["FEM","2023-11-21","B1500001387","Hermosillo Comercial, SRL","FEM-COMPRA DE ALIMENTOS PARA LOS ESTUDIANTES OR.2023-00431",105355.04,"45 Dias","2024-01-05"]
["FEM","2023-11-21","B1500001388","Hermosillo Comercial, SRL","FEM-COMPRA DE ALIMENTOS (PENDIENTE)",80748,"45 Dias","2024-01-05"]
["FEM","2024-01-22","B1500001419","Hermosillo Comercial, SRL","FEM-ADQUISICION DE ALIMENTOS ESTUDIANTES  OR.2023-00684",75692,"45 Dias","2024-03-07"]
["FEM","2024-02-16","B1500001427","Hermosillo Comercial, SRL","FEM-COMPRA DE PROVISIONES (CONDIMENTOS) PARA USO DE LA ALIMENTACION DE LOS ESTUDIANTES OR. 2023-...",3060,"45 Dias","2024-04-01"]
["FEM","2024-02-16","B1500001429","Hermosillo Comercial, SRL","FEM-COMPRA DE PROVISIONES  PARA USO DE LA ALIMENTACION DE LOS ESTUDIANTES OR.2023-00684",403370,"45 Dias","2024-04-01"]
["FEM","2024-05-15","B1500001433","Hermosillo Comercial, SRL","FEM-COMPRA DE ALIMENTOS PARA LOS DE LOS ESTUDIANTES",7380,"45 Dias","2024-06-29"]
["FEM","2024-05-15","B1500001434","Hermosillo Comercial, SRL","FEM-COMPRA DE ALIMENTOS PARA LOS DE LOS ESTUDIANTES (PENDIENTE DE RECIBIR)",432844,"45 Dias","2024-06-29"]
["FEM","2024-05-15","B1500001437","Hermosillo Comercial, SRL","FEM-COMPRA DE ALIMENTOS PARA LOS DE LOS ESTUDIANTES (PENDIENTE DE RECIBIR)",46200,"45 Dias","2024-06-29"]
["LNM","2024-05-20","B1500001456","Hermosillo Comercial, SRL","LNM-COMPRA DE ALIMENTACION DE LOS ESTUDIANTES OR.2024-00141",7073.39,"45 Dias","2024-07-04"]
["LNM","2024-05-20","B1500001457","Hermosillo Comercial, SRL","LNM-COMPRA DE ALIMENTACION DE LOS ESTUDIANTES OR.2023-00413",37033.14,"45 Dias","2024-07-04"]
["EMH","2024-05-20","B1500001436","Hermosillo Comercial, SRL","EMH-COMPRA DE ALIMENTOS PARA RECINTO  ORDEN 2024-0042",195850,"45 Dias","2024-07-04"]
["FEM","2024-05-20","B1500001455","Hermosillo Comercial, SRL","FEM-COMPRA DE ALIMENTOS PARA LOS DE LOS ESTUDIANTES (PENDIENTE DE RECIBIR)",23650,"45 Dias","2024-07-04"]
["FEM","2024-05-20","B1500001454","Hermosillo Comercial, SRL","FEM-COMPRA DE ALIMENTOS PARA LOS DE LOS ESTUDIANTES (PENDIENTE DE RECIBIR)",13200,"45 Dias","2024-07-04"]
[{"$f":"MID(E193,1,3)","v":"LNM"},"2024-05-27","B1500000350","HERNANDEZ PEGUERO & ASOCIADOS","LNM - POR SERVICIO DE NOTARIZACION DE CONTRATOS",25016,"45 Dias","2024-07-11"]
["REC","2021-11-20","B1500000540","HOTEL COSTA LARIMAR, SRL","REC-SERVICIO DE ALOJAMIENTO PARA PARTICIPANTES DE LA PRIMERA FERIA DE BUENAS PRACTICAS",21600,"45 Dias","2022-01-04"]
["REC","2024-05-27","B1500000720","Identificaciones Corporativas Srl","REC- ADQUISICIÓN DE PLANTILLAS PVC, SEGUN ORDEN 2024-00166",6136,"45 Dias","2024-07-11"]
["FEM","2024-05-06","B1500000120","IMPORTADORA CODEPRO, SRL","FEM-ADQUISICION DE ALIMENTOS",42174,"45 Dias","2024-06-20"]
["LNM","2017-12-05","A010040011500003287","Importadora de Prod. p/ Oficinas","LNM-Materiales de oficina",196.8,"45 Dias","2018-01-19"]
["UM","2016-12-31","A030030010100051507","Imprenta  Hnos Paniagua cxa","UM-FACT VARIAS DE Imprenta Paniagua /UM/Periodo 2014",14443.2,"45 Dias",{"$f":"+B198+45","v":"2017-02-14"}]
["FEM","2019-09-16","B1500000292","Impresora Kelvis, SRL","FEM-LAMINADO DE AULAS DEL RECINTO",62776,"45 Dias","2019-10-31"]
["FEM","2019-10-07","B1500000300","Impresora Kelvis, SRL","FEM-SERVICIOS DE LAMINADO DE PUERTAS, VENTANAS Y SEÑALIZACION DE PARQUEOS",7788,"45 Dias","2019-11-21"]
["UM","2016-12-31","A010010011500000160/172 ","Impresos  Camilo, S.A","UM-FACT A010010011500000160/172 DE impresos Camilo/UM/periodo 2011y 2012",14630.5,"45 Dias",{"$f":"+B201+45","v":"2017-02-14"}]
["REC","2024-04-02","B1500000045","instituto hijas de la Maria auxiliadora ,","REC- ULTIMO PAGO ASISTENCIA TECNICA PARA EL DESARROLLO CURRICULAR.",8280000,"45 Dias","2024-05-17"]
["EPH","2024-04-15","B1500000046","instituto hijas de la Maria auxiliadora ,","EPH-SERVICIOS DE CAPACITACION ¨NEURODIVERSIDAD UNA MIRADA HACIA LA INCLUSIÓN¨DIRIGIDA A LOS ESTU...",40000,"45 Dias","2024-05-30"]
["REC","2017-12-21","A010010011500000698","INSTITUTO POSTAL DOMINICANO","REC-SERV. DE DISTRIBUCION REVISTAS",51224,"45 Dias","2018-02-04"]
["REC","2017-12-21","A010010011500000697","INSTITUTO POSTAL DOMINICANO","REC-SERV. DE DISTRIBUCION REVISTAS",27950,"45 Dias","2018-02-04"]
[{"$f":"MID(E206,1,3)","v":"REC"},"2017-12-21","A010010011500000700","INSTITUTO POSTAL DOMINICANO","REC-SERV. DE DISTRIBUCION REVISTAS",24570,"45 Dias","2018-02-04"]
["REC","2017-12-21","A010010011500000701","INSTITUTO POSTAL DOMINICANO","REC-SERV. DE DISTRIBUCION REVISTAS",16250,"45 Dias","2018-02-04"]
["REC","2017-12-21","A010010011500000699","INSTITUTO POSTAL DOMINICANO","REC-SERV. DE DISTRIBUCION REVISTAS",42250,"45 Dias","2018-02-04"]
["FEM","2023-10-23","B1500001382","Inversiones DLP,SRL","FEM-COMPRA DE ALIMENTOS (PENDIENTE)",19528.439999999999,"45 Dias","2023-12-07"]
["UM","2023-11-15","B1500001404","Inversiones DLP,SRL","UM-COMPRA DE ALIMENTOS",27300,"45 Dias","2023-12-30"]
["UM","2024-04-01","B1500001491","Inversiones DLP,SRL","UM-ADQUISICION DE ALIMENTOS Y BEBIDAS OR. 2022-00249",5087.5,"45 Dias","2024-05-16"]
["JVM","2024-05-03","B1500001502","Inversiones DLP,SRL","JVM-ADQUISICION DE ALIMENTOS Y BEBIDAS PARA LOS ESTUDIANTES DEL RECINTO OR.00115/2023",11125,"45 Dias","2024-06-17"]
["JVM","2024-05-03","B1500001505","Inversiones DLP,SRL","JVM-ADQUISICION DE ALIMENTOS Y BEBIDAS PARA LOS ESTUDIANTES DEL RECINTO OR.2023-00447",23010,"45 Dias","2024-06-17"]
["JVM","2024-05-03","B1500001507","Inversiones DLP,SRL","JVM-ADQUISICION DE ALIMENTOS Y BEBIDAS PARA LOS ESTUDIANTES DEL RECINTO OR.2023-00482",1852.5,"45 Dias","2024-06-17"]
["JVM","2024-05-03","B1500001508","Inversiones DLP,SRL","JVM-ADQUISICION DE ALIMENTOS Y BEBIDAS PARA LOS ESTUDIANTES DEL RECINTO OR.2023-00468",20449,"45 Dias","2024-06-17"]
["JVM","2024-05-03","B1500001506","Inversiones DLP,SRL","JVM-ADQUISICION DE ALIMENTOS Y BEBIDAS PARA LOS ESTUDIANTES DEL RECINTO OR.2023-00474",39485.160000000003,"45 Dias","2024-06-17"]
["JVM","2024-05-03","B1500001509","Inversiones DLP,SRL","JVM-ADQUISICION DE ALIMENTOS Y BEBIDAS PARA LOS ESTUDIANTES DEL RECINTO OR.2023-00475",125236.78,"45 Dias","2024-06-17"]
["JVM","2024-05-03","B1500001504","Inversiones DLP,SRL","JVM-ADQUISICION DE ALIMENTOS Y BEBIDAS PARA LOS ESTUDIANTES DEL RECINTO OR.2023-00150",51187.5,"45 Dias","2024-06-17"]
["JVM","2024-05-03","B1500001503","Inversiones DLP,SRL","JVM-ADQUISICION DE ALIMENTOS Y BEBIDAS PARA LOS ESTUDIANTES DEL RECINTO OR.2023-00177",3770.24,"45 Dias","2024-06-17"]
["UM","2024-05-09","B1500001520","Inversiones DLP,SRL","UM-ADQUISIICON DE ALIMENTOS PARA CONSUMO DE LOS ESTUDIANTES INTERNOS Y SEMI-INTERNOS",8450,"45 Dias","2024-06-23"]
["UM","2024-05-09","B1500001519","Inversiones DLP,SRL","UM-ADQUISIICON DE ALIMENTOS PARA CONSUMO DE LOS ESTUDIANTES INTERNOS Y SEMI-INTERNOS",26785.200000000001,"45 Dias","2024-06-23"]
["UM","2024-05-09","B1500001517","Inversiones DLP,SRL","UM-ADQUISIICON DE ALIMENTOS PARA CONSUMO DE LOS ESTUDIANTES INTERNOS Y SEMI-INTERNOS",26266.5,"45 Dias","2024-06-23"]
["UM","2024-05-09","B1500001518","Inversiones DLP,SRL","UM-ADQUISIICON DE ALIMENTOS PARA CONSUMO DE LOS ESTUDIANTES INTERNOS Y SEMI-INTERNOS",12420,"45 Dias","2024-06-23"]
["UM","2024-05-09","B1500001516","Inversiones DLP,SRL","UM-ADQUISIICON DE ALIMENTOS PARA CONSUMO DE LOS ESTUDIANTES OR. 2022-00227",7612.5,"45 Dias","2024-06-23"]
["JVM","2024-05-22","B1500001530","Inversiones DLP,SRL","JVM-ADQUISIICON DE ALIMENTOS PRODUCTOS LACTEOS Y HUEVOS PARA CONSUMO DE LOS ESTUDIANTES OR. 2023...",23232.3,"45 Dias","2024-07-06"]
["JVM","2024-05-22","B1500001527","Inversiones DLP,SRL","JVM-ADQUISIICON DE ALIMENTOS PARA CONSUMO DE LOS ESTUDIANTES OR. 2023-00150",62475,"45 Dias","2024-07-06"]
["JVM","2024-05-22","B1500001528","Inversiones DLP,SRL","JVM-ADQUISIICON DE ALIMENTOS PARA CONSUMO DE LOS ESTUDIANTES OR. 2023-00447",40046.5,"45 Dias","2024-07-06"]
["JVM","2024-05-22","B1500001529","Inversiones DLP,SRL","JVM-ADQUISIICON DE ALIMENTOS PARA CONSUMO DE LOS ESTUDIANTES OR. 2023-00474",50928.800000000003,"45 Dias","2024-07-06"]
["UM ","2024-05-29","B1500001536","Inversiones DLP,SRL","UM -ADQUISIICON DE ALIMENTOS PARA CONSUMO DE LOS ESTUDIANTES OR. 2022-00695",4687.5,"45 Dias","2024-07-13"]
["UM ","2024-05-29","B1500001541","Inversiones DLP,SRL","UM -ADQUISIICON DE ALIMENTOS PARA CONSUMO DE LOS ESTUDIANTES OR. 2023-00300",8125,"45 Dias","2024-07-13"]
["UM ","2024-05-29","B1500001540","Inversiones DLP,SRL","UM -ADQUISICON DE ALIMENTOS PARA CONSUMO DE LOS ESTUDIANTES OR. 2023-00420",45142.8,"45 Dias","2024-07-13"]
["UM ","2024-05-29","B1500001539","Inversiones DLP,SRL","UM -ADQUISICON DE ALIMENTOS PARA CONSUMO DE LOS ESTUDIANTES OR. 2023-00290",25412.5,"45 Dias","2024-07-13"]
["UM ","2024-05-29","B1500001537","Inversiones DLP,SRL","UM -ADQUISICION DE ALIMENTOS PARA CONSUMO DE LOS ESTUDIANTES OR. 2022-00551",14592.5,"45 Dias","2024-07-13"]
["UM ","2024-05-29","B1500001538","Inversiones DLP,SRL","UM -ADQUISICION DE ALIMENTOS PARA CONSUMO DE LOS ESTUDIANTES",49856.78,"45 Dias","2024-07-13"]
["FEM","2024-02-26","B1500002017","INVERSIONES ND & ASOCIADOS SRL","FEM- COMPRA DE ALIMENTOS PARA CONSUMO DEL RECINTO (PENDIENTE)",57449.48,"45 Dias","2024-04-11"]
["EMH","2024-04-08","B1500002042","INVERSIONES ND & ASOCIADOS SRL","EMH- COMPRA DE ALIMENTOS PARA CONSUMO DEL RECINTO",12779.4,"45 Dias","2024-05-23"]
["FEM","2024-04-09","B1500002048","INVERSIONES ND & ASOCIADOS SRL","FEM- COMPRA DE ALIMENTOS PARA CONSUMO DEL RECINTO OR. 2024-00121",21741.3,"45 Dias","2024-05-24"]
["FEM","2024-04-17","B1500002057","INVERSIONES ND & ASOCIADOS SRL","FEM- COMPRA DE ALIMENTOS PARA CONSUMO DEL RECINTO",28484,"45 Dias","2024-06-01"]
["JVM","2024-05-13","B1500002084","INVERSIONES ND & ASOCIADOS SRL","JVM-ADQUISICION DE REMANENTES DE ALIMENTOS Y BEBIDAS  PARA LOS ESTUDIANTES",42108.4,"45 Dias","2024-06-27"]
["FEM","2024-05-13","B1500002060","INVERSIONES ND & ASOCIADOS SRL","FEM- COMPRA DE ALIMENTOS PARA CONSUMO DEL RECINTO (PENDIENTE DE RECIBIR)",66338.899999999994,"45 Dias","2024-06-27"]
["FEM","2024-05-20","B1500002088","INVERSIONES ND & ASOCIADOS SRL","FEM- COMPRA DE ALIMENTOS PARA CONSUMO DEL RECINTO (PENDIENTE DE RECIBIR)",12994.8,"45 Dias","2024-07-04"]
["FEM","2024-05-27","B1500002094","INVERSIONES ND & ASOCIADOS SRL","FEM- COMPRA DE ALIMENTOS PARA CONSUMO DEL RECINTO (PENDIENTE DE RECIBIR)",10995.6,"45 Dias","2024-07-11"]
["UM","2016-12-31","A01001001150002309","Inversiones Toledo Marte SRL","UM-fact A01001001150002309/ Inversiones Toledo /UM/periodo 2015",26007,"45 Dias",{"$f":"+B243+45","v":"2017-02-14"}]
["REC","2022-01-31","B1500000077","INVERSIONES VERADALIA SRL","REC- SERVICIO FUMIGACION PAR AREAS EXTERIOR E INTERIOR DE RECTORIA",6844,"45 Dias","2022-03-17"]
["REC","2022-03-10","B1500000084","INVERSIONES VERADALIA SRL","REC - SERVICIO FUMIGACION PAR AREAS EXTERIOR E INTERIOR DE RECTORIA",6844,"45 Dias","2022-04-24"]
["REC","2022-03-25","B1500000086","INVERSIONES VERADALIA SRL","REC - SERVICIO FUMIGACION PAR AREAS EXTERIOR E INTERIOR DE RECTORIA",6844,"45 Dias","2022-05-09"]
["REC","2022-05-17","B1500000092","INVERSIONES VERADALIA SRL","REC-SERVICIO DE FUMIGACION",6844,"45 Dias","2022-07-01"]
["REC","2022-06-14","B1500000097","INVERSIONES VERADALIA SRL","REC-SERVICIO DE FUMIGACION JUNIO",6844,"45 Dias","2022-07-29"]
["REC","2022-07-11","B1500000100","INVERSIONES VERADALIA SRL","REC-SERVICIO DE FUMIGACION JULIO",6844,"45 Dias","2022-08-25"]
["FEM","2024-04-02","B1500001072","INVERSIONES YANG, SRL","FEM-ADQUISICION DE ALIMENTOS PARA LOS ESTUDIANTES  DEL RECINTO. OR-2024-00036",84840,"45 Dias","2024-05-17"]
["FEM","2024-04-09","B1500001080","INVERSIONES YANG, SRL","FEM-ADQUISICION DE ALIMENTOS PARA LOS ESTUDIANTES  DEL RECINTO. OR-2024-00036",23520,"45 Dias","2024-05-24"]
["FEM","2024-04-24","B1500001089","INVERSIONES YANG, SRL","FEM-ADQUISICION DE ALIMENTOS PARA LOS ESTUDIANTES  DEL RECINTO OR.2024-00036",30391.200000000001,"45 Dias","2024-06-08"]
["FEM","2024-05-07","B1500001097","INVERSIONES YANG, SRL","FEM-ADQUISICION DE ALIMENTOS (PENDIENTE DE RECIBIR)",15120,"45 Dias","2024-06-21"]
["FEM","2024-05-21","B1500001102","INVERSIONES YANG, SRL","FEM-ADQUISICION DE ALIMENTOS (PENDIENTE DE RECIBIR)",47040,"45 Dias","2024-07-05"]
["REC","2021-06-08","B1500000328","J.C.Q, INGENIERIA EN ASENSORES, SRL","REC-SERVICIO DE MANTENIMIENTO DE ASCENSORES",9468.32,"45 Dias","2021-07-23"]
["LNM","2021-09-03","B1500000355","J.C.Q, INGENIERIA EN ASENSORES, SRL","LNM- MANT. Y REP. DE ASCENSORES (PENDIENTE DE RECIBIR)",4734.16,"45 Dias","2021-10-18"]
["REC","2021-10-06","B1500000363","J.C.Q, INGENIERIA EN ASENSORES, SRL","REC-SERVICIO DE MANTENIMIENTO DE ASCENSORES",14202.48,"45 Dias","2021-11-20"]
["FEM","2024-05-23","B1500002626","JARDIN ILUSIONES SRL","FEM- COMPRA DE ARREGLOS FLORALES",8260,"45 Dias","2024-07-07"]
["EMH","2024-04-18","B1500000446","JOSE PIO SANTANA HERRERA","EMH-NOTARIACION DE 105 CONTRATOS OR.2022-59",61950,"45 Dias","2024-06-02"]
["REC","2024-04-01","B1500000047","JUAN CARLOS ALVAREZ ROMERO","REC-CONTRATACION SERVICIOS AUDIOVISAUALES ACT. ISFODOSU",374060,"45 Dias","2024-05-16"]
["REC","2024-04-01","B1500000048","JUAN CARLOS ALVAREZ ROMERO","REC-CONTRATACION SERVICIOS AUDIOVISAUALES ACT. ISFODOSU",114460,"45 Dias","2024-05-16"]
["REC","2024-04-23","B1500000049","JUAN CARLOS ALVAREZ ROMERO","REC-CONTRATACION SERVICIOS DE FILMACION, EDICION Y STREAMING DE VIDEOS PARA LAS ACTIVIDADES DEL ...",652646.19999999995,"45 Dias","2024-06-07"]
["JVM","2024-04-11","B1500000321","KUKIRA SERVICIOS MULTIPLES","JVM-ADQUISICION DE SERVICIOS DE CATERING PARA  ACTIVIDADES DEL RECINTO.OR. 2024-00027",132750,"45 Dias","2024-05-26"]
["JVM","2024-05-03","B1500000322","KUKIRA SERVICIOS MULTIPLES","JVM-ADQUISICION DE SERVICIOS DE CATERING PARA  ACTIVIDADES DEL RECINTO.OR. 2023-00497",55460,"45 Dias","2024-06-17"]
["REC","2023-12-13","B1500000249","LA COCINA GUSTAER, SRL","REC- SERVICIOS DE REFRIGERIOS PARA TALLER DE PROYECTO NACIONAL DE DISPLINA POSITIVA",171100,"45 Dias","2024-01-27"]
["REC","2024-04-02","B0400000051","LA COCINA GUSTAER, SRL","REC- NC AFECTA NCF: B1500000249 POR REFRIGERIO NO BRINDADO. (PENDIENTE DE RECIBIR)",-22500,"45 Dias",{"$f":"+B266+45","v":"2024-05-17"}]
["JVM","2019-03-12","B1500000006","LEONARDO LUCIANO REYES","JVM-MANTENIMIENTO PLANTA ELECTRICA",34810,"45 Dias","2019-04-26"]
["JVM","2024-04-22","B1500000270","Leonardo Tours","JVM-SERVICIOS DE TRANSPORTE EN AUTOBUS PARA ACTIVIDADES  DEL RECINTO OR.00097-2024",134000,"45 Dias","2024-06-06"]
["FEM","2024-04-17","B1500000662","LUFISA COMERCIAL SRL","FEM-ALIMENTOS Y BEBIDAS P/LOS ESTUDIANTES (PENDIENTE)",179203.75,"45 Dias","2024-06-01"]
[{"$f":"MID(E270,1,3)","v":"FEM"},"2024-05-01","B1500000678","LUFISA COMERCIAL SRL","FEM-COMPRA DE ALIMENTOS PARA LOS ESTUDIANTES",116935,"45 Dias","2024-06-15"]
["EMH","2024-05-02","B1500000680","LUFISA COMERCIAL SRL","EMH-COMPRA DE ALIMENTOS PARA LOS ESTUDIANTES",113209.2,"45 Dias","2024-06-16"]
["FEM","2024-05-24","B1500000710","LUFISA COMERCIAL SRL","FEM-COMPRA DE ALIMENTOS PARA LOS ESTUDIANTES (PENDIENTE DE RECIBIR)",111357.5,"45 Dias","2024-07-08"]
["FEM","2024-05-24","B1500000709","LUFISA COMERCIAL SRL","FEM-COMPRA DE ALIMENTOS PARA LOS ESTUDIANTES",216710,"45 Dias","2024-07-08"]
["EMH","2024-05-27","B1500000714","LUFISA COMERCIAL SRL","EMH-COMPRA DE ALIMENTOS PARA LOS ESTUDIANTES ORDEN 2023-00657",122443.88,"45 Dias","2024-07-11"]
["JVM","2022-11-30","B1500004830","MACORISANA DE COMBUSTIBLE , SRL","JVM-ADQUISICION DE GASOIL PARA PLANTA ELECTRICA DEL RECINTO",27670,"45 Dias","2023-01-14"]
["JVM","2023-03-01","B1500004987","MACORISANA DE COMBUSTIBLE , SRL","JVM-ADQUISICION DE GASOIL PARA PLANTA ELECTRICA DEL RECINTO",36165,"45 Dias","2023-04-15"]
["JVM","2024-04-11","B1500000224","MADERAS TROPICALES, SRL","JVM-ADQUISICIÓN DE PRODUCTOS PARA JARDINERIA OR-2024-00050",52200,"45 Dias","2024-05-26"]
["FEM","2024-01-04","B1500000512","MAIKOL JOSE DE LA ROSA RAMIREZ","FEM-ADQUISICION DE ALIMENTOS(PENDIENTE)",11175,"45 Dias","2024-02-18"]
["FEM","2024-01-30","B1500000538","MAIKOL JOSE DE LA ROSA RAMIREZ","FEM-ADQUISICION DE ALIMENTOS(PENDIENTE)",18100,"45 Dias","2024-03-15"]
["JVM","2024-04-01","B1500000586","MAIKOL JOSE DE LA ROSA RAMIREZ","JVM-ADQUISICION DE ALIMENTOS PARA  CONSUMO DE LOS ESTUDIANTES",146709,"45 Dias","2024-05-16"]
["JVM","2024-05-06","B1500000612","MAIKOL JOSE DE LA ROSA RAMIREZ","JVM-ADQUISICION DE ALIMENTOS PARA  CONSUMO DE LOS ESTUDIANTES OR. 2023-00613",31950,"45 Dias","2024-06-20"]
["JVM","2024-05-06","B1500000613","MAIKOL JOSE DE LA ROSA RAMIREZ","JVM-ADQUISICION DE ALIMENTOS PARA  CONSUMO DE LOS ESTUDIANTES OR. 2023-114",16720,"45 Dias","2024-06-20"]
["JVM","2024-05-06","B1500000611","MAIKOL JOSE DE LA ROSA RAMIREZ","JVM-ADQUISICION DE ALIMENTOS PARA  CONSUMO DE LOS ESTUDIANTES",107360,"45 Dias","2024-06-20"]
["REC","2024-05-03","B1500000171","Maitri, SRL","REC-CONTRATACION DE CONFERENCIA ENFOCADA AL VALOR DEL COMPROMISO PARA LOS COLABORADORES DEL ISFO...",85300,"45 Dias","2024-06-17"]
["LNM","2024-04-01","B1500000208","Manuel Ant.Rosario Almanzar","LNM-COMPRA DE PROVISIONES PARA USO DE LA  ALIMENTACIÓN OR.2023-00587",74960,"45 Dias","2024-05-16"]
["LNM","2024-05-06","B1500000210","Manuel Ant.Rosario Almanzar","LNM-COMPRA DE PROVISIONES PARA USO DE LA  ALIMENTACIÓN",3030.5,"45 Dias","2024-06-20"]
["LNM","2024-05-06","B1500000211","Manuel Ant.Rosario Almanzar","LNM-COMPRA DE PROVISIONES PARA USO DE LA  ALIMENTACIÓN",72708,"45 Dias","2024-06-20"]
["EMH","2016-12-31","A010010010100000008","Marita Gourmet, SRL","EMH-fact A010010010100000008/EMH/PERIODO 2011",28855,"45 Dias",{"$f":"+B288+45","v":"2017-02-14"}]
["EMH","2024-05-24","B1500000700","MAROCTAC COMERCIAL, SRL","EMH-INSUMOS ELECTRICOS PARA BOMBA DE AGUA  ORDEN 2024-00181",15045,"45 Dias","2024-07-08"]
["REC","2023-07-07","B1500000887","MARTINEZ TORRES TRAVELING","REC-SERVICIO DE CATERING P/DIFERENTES ACTIVIDADES",207986.8,"45 Dias","2023-08-21"]
["REC","2023-09-06","B1500000926","MARTINEZ TORRES TRAVELING","REC- ALMUERZOS Y REFRIGERIOS PARA  ACTIVIDADES VARIAS",24697.4,"45 Dias","2023-10-21"]
["REC","2024-04-18","B1500001152","MARTINEZ TORRES TRAVELING","REC-  REFRIGERIOS PARA  GRADUACION EXTRAORDINARIA DE GRADO Y POSTGRADO OR. 2024-00068",93810,"45 Dias","2024-06-02"]
["JVM","2024-01-30","B1500000385","MAXX ESTINTORES SRL","JVM - SERVICIO DE MANTENIMIENTO Y RECARGA DE EXTINTORES",114979.2,"45 Dias","2024-03-15"]
["FEM","2024-04-02","B1500000708","MERCA DEL ATLANTICO, SRL","FEM-ADQUISICION DE SERVICIO DE CATERING (PENDIENTE)",25134,"45 Dias","2024-05-17"]
["JVM","2023-12-08","B1500000052","MInerva Altagracia Hirujo Tamariz","JVM - NOTARIZACION DE 102 CONTRATOS. OR-2020-0128",43660,"45 Dias","2024-01-22"]
["EMH","2024-04-11","B150000080","MINERVINO, SRL","EMH-COMPRA DE ALIMENTOS PARA LOS ESTUDIANTES",210183.96,"45 Dias","2024-05-26"]
["REC","2024-03-14","B1500000331","MODAFOCA, SRL","REC-SERVICIO DE CONSULTORIA PARA EL REBRANDING DE LA MARCA Y ELAB. DEL MANUAL DE IDENTIDAD PARA ...",420000,"45 Dias","2024-04-28"]
["FEM","2024-03-21","B1500000183","MONCALI, SRL","FEM-COMPRA DE ALIMENTOS OR. 2024-00037",109652,"45 Dias","2024-05-05"]
["FEM","2024-04-05","B1500000188","MONCALI, SRL","FEM-COMPRA DE ALIMENTOS (PENDIENTE)",100186,"45 Dias","2024-05-20"]
["UM","2024-04-16","B1500000193","MONCALI, SRL","UM-COMPRA DE ALIMENTOS OR. 2024-00093",111510,"45 Dias","2024-05-31"]
["FEM","2024-04-18","B1500000194","MONCALI, SRL","FEM-COMPRA DE ALIMENTOS (PENDIENTE)",140080.67000000001,"45 Dias","2024-06-02"]
["FEM","2024-05-06","B1500000203","MONCALI, SRL","FEM-COMPRA DE ALIMENTOS (PENDIENTE DE RECIBIR)",77679.33,"45 Dias","2024-06-20"]
["FEM","2016-11-30","A010010011500000060","MULTFOODS GM DOMINICANA","FEM-SERVICIOS DE CATERING",15888.4,"45 Dias","2017-01-14"]
["UM","2017-06-21","A010010011500001029","Multimpresos OHPE, SRL","UM-60 SERIGRAFIADOS DE POLO SHIRT",31860,"45 Dias","2017-08-05"]
["UM","2017-10-11","A010010011500001075","Multimpresos OHPE, SRL","UM-125 serigrafía de polo t-shirt",70062.5,"45 Dias","2017-11-25"]
["EPH","2016-12-31","A010010011500002309","Negociado de vehiculo SRL","EPH-PARA INGRESAR LA CX P NEGOCIADO DE VEHIC.  AL 31/12/2016 -EPH",15725.31,"45 Dias",{"$f":"+B306+45","v":"2017-02-14"}]
["FEM","2024-05-20","B1500000377","NEOAGRO, SRL","FEM-COMPRA DE ALIMENTOS PARA LOS ESTUDIANTES (PENDIENTE DE RECIBIR)",24960,"45 Dias","2024-07-04"]
["FEM","2024-05-20","B1500000367","NEOAGRO, SRL","FEM-COMPRA DE ALIMENTOS PARA LOS ESTUDIANTES (PENDIENTE DE RECIBIR)",66570.399999999994,"45 Dias","2024-07-04"]
["REC","2024-04-25","B1500000468","Nestevez Servicios de comunicación SRL","REC- CONDUCCION DE LA GRADUACION ORDINARIA DEL ISFODOSU.",55000,"45 Dias","2024-06-09"]
["UM","2024-04-08","B1500000155","Nolazco Hidalgo Guzman","UM-SERVICIO DE NOTARIZACION DE 66 CONTRATOS DE BECAS PARA ESTUDIANTES",93456,"45 Dias","2024-05-23"]
["REC","2024-04-17","B1500000895","OFICENTRO ORIENTAL","REC-SERVICIO DE IMPRESION DE LIBROS DE GRADUACION",118000,"45 Dias","2024-06-01"]
["REC","2024-04-26","B1500000900","OFICENTRO ORIENTAL","REC-IMPRESIONES PARA EL ACTO DE LANZAMIENTO DE LA CARRERA PROFESIONAL ISFODOSU Y PARA XII CONGRE...",879100,"45 Dias","2024-06-10"]
["UM","2024-05-10","B1500002175","Oficina Universal, S.A.","UM-MANTENIMIENTO Y REPARACION DE VEHICULOS FLOOTILLA VEHICULAR OR. 2022-00194",8755.6,"45 Dias","2024-06-24"]
["UM","2024-05-10","B1500002176","Oficina Universal, S.A.","UM-MANTENIMIENTO Y REPARACION DE VEHICULOS FLOOTILLA VEHICULAR OR. 2022-00194",9788.1,"45 Dias","2024-06-24"]
["REC","2024-04-10","B1500003016","OGTIC, OFICINA GUB. DE TEC. DE INF. Y COM","REC- SERVICIO DE PORTAFIRMAS DIGITAL FIRMAGOB, 01-12-2023 AL 01-12-2024",17500,"45 Dias","2024-05-25"]
["REC","2024-05-27","B1500000281","OMX MULTISERVICIOS, SRL","REC-RENOVACIÓN DE LICENCIAS DE SOFTWARES ORDEN 2024-00110",95040,"45 Dias","2024-07-11"]
["JVM","2023-11-03","B1500000116","Operadora Panipueblo","JVM-ADQUISICION DE PRODUCTOS DE PANADERIA",37450,"45 Dias","2023-12-18"]
["JVM","2023-12-13","B1500000117","Operadora Panipueblo","JVM-ADQUISICION DE PRODUCTOS DE PANADERIA",25900,"45 Dias","2024-01-27"]
["JVM","2024-04-16","B1500000122","Operadora Panipueblo","JVM-ADQUISICION DE REMANTES DE ALIMENTOS Y BEBIDAS OR. 2023-00688",48180,"45 Dias","2024-05-31"]
["REC","2024-05-07"," B1500000114","Organización de Estados Iberoamericanos","REC- 1ER PAGO 50% POR GESTION DE BECAS ADMINISTRATIVAS Y DOCENTES",18524056.390000001,"45 Dias","2024-06-21"]
["REC","2024-05-07","B1500000113","Organización de Estados Iberoamericanos","REC- 2DO PAGO POR ASISTENCIA TECNICA PARA EL FORT. DE EXT. UNIVERSITARIA Y PUBLICACIONES ACADEMI...",4000000,"45 Dias","2024-06-21"]
["REC","2024-01-09","2659","ORGANIZACION UNIVERSITARIA INTERAMERICA","REC-Pago cuota menbresía anual 2024 del Instituto por USD1,300.00  a una tasa de RD$58.7282",76346.66,"45 Dias","2024-02-23"]
["REC","2024-05-16","B1500000029","OTROJO EIRL","REC- SERVICIOS FOTOGRAFICOS PARA  ACTIV.REALIZADAS EN EL ISFODOSU.",356622.1,"45 Dias","2024-06-30"]
["REC","2024-05-02","B1500000011","PARROQUIA CATEDRAL SAN PEDRO APOSTOL","REC- ALQUILER DE DE SILLAS, MESAS, ESPACIO, PROYECTOR, EQUIPO DE SONIDOS CI-0000240-2024",346950,"45 Dias","2024-06-16"]
["REC","2024-04-23","B1500001130","Plaza Naco Hotel","REC-SERVICIOS DE ALQUILER DE SALON EN EL HOTEL PARA ALMUERZO GRADUACION CON DIRECTORES Y ADMINIS...",483373.85,"45 Dias","2024-06-07"]
["REC","2024-05-27","B1500001134","Plaza Naco Hotel","REC-SERVICIOS DE ALQUILER DE SALON, ALMUERZO INCLUIDO  (PENDIENTE DE RECIBIR)",483462.76,"45 Dias","2024-07-11"]
["LNM","2016-12-31","A010010010100000008","Pollo Licey ,Srl","LNM-FACTS VARIAS Pollo Licey . SRL/LNNM/PERIODO 2015",6995.01,"45 Dias",{"$f":"+B327+45","v":"2017-02-14"}]
["LNM","2024-05-21","B1500000299","procomer , srl","LNM-SERVICIO DE MANT. Y REP. DE MUEBLES OR.2022-00701",201674,"45 Dias","2024-07-05"]
["REC","2024-05-23","E45000000001","Promociones y Proyectos","REC-SERVICIO DE HOSPEDAJE EN LA CIUDAD DE SANTO DOMINGO, D.N PARA EL VICERRECTOR EJECUTIVO DEL R...",21864.57,"45 Dias","2024-07-07"]
["EMH","2024-05-22","B1500000171","Qualipliers, EIRL","EMH-COMPRA DE CAPACITADOR PARA BOMBA  DE AGUA  ORDEN 2024-00182",5472.49,"45 Dias","2024-07-06"]
["LNM","2024-05-14","B1500000579","QUALITY GLOBAL BUSINESS GB SRL","LNM - SERVICIOS CONTRATACION CAPACITACIONES VARIAS PARA COLABORADORES ISFODOSU OR. 2023-00533",240000,"45 Dias","2024-06-28"]
["JVM","2024-05-03","B1500000077","R&S INNOVATION BUSINESS GROUP IBG","JVM-ADQUISICION DE BANNER, CRUZA CALLES, BOLSAS Y LIBRETAS",154875,"45 Dias","2024-06-17"]
["JVM","2024-05-03","B150000078","R&S INNOVATION BUSINESS GROUP IBG","JVM-ADQUISICION DE PRENDAS DE VESTIR",69030,"45 Dias","2024-06-17"]
[{"$f":"MID(E334,1,3)","v":"JVM"},"2024-05-03","B1500000078","R&S INNOVATION BUSINESS GROUP IBG","JVM-ADQUISICION DE GORRAS  (PENDIENTE DE RECIBIR)",69030,"45 Dias","2024-06-17"]
["JVM","2024-05-22","B1500000079","R&S INNOVATION BUSINESS GROUP IBG","JVM-ADQUISICION DE PRENDAS DE VESTIR (UNIFORMES DEPORTIVOS RECINTOS JVM Y EMH) OR. 00628-2023",417376.62,"45 Dias","2024-07-06"]
["JVM","2024-05-24","B1500000084","R&S INNOVATION BUSINESS GROUP IBG","JVM-ADQUISICION DE VASOS TERMICOS ISFODOSU-2024-00079",486278,"45 Dias","2024-07-08"]
["UM","2019-09-27","B1500000011","R&S INTERNACIONAL SRL","UM-SERVICIOS DE FUMIGACION EN TODAS LAS AREAS DEL RECINTO UM",19824,"45 Dias","2019-11-11"]
["EPH","2018-11-29","B1500000016","Rafael Arnaldo Sosa Liriano","EPH-ADQUISICION DE REMANENTE DE ALIMENTACION PARA ESTUDIANTES DEL RECINTO",3025,"45 Dias","2019-01-13"]
["EPH","2019-01-25","B1500000021","Rafael Arnaldo Sosa Liriano","EPH-ADQUISICION DE REMANENTE DE ALIMENTACION PARA ESTUDIANTES DEL RECINTO",14775,"45 Dias","2019-03-11"]
["EPH","2019-01-25","B1500000022","Rafael Arnaldo Sosa Liriano","EPH-ADQUISICION DE REMANENTE DE ALIMENTACION PARA ESTUDIANTES DEL RECINTO",850,"45 Dias","2019-03-11"]
["EPH","2019-04-24","B1500000028","Rafael Arnaldo Sosa Liriano","EPH-ADQUISICION DE REMANENTE DE ALIMENTACION PARA ESTUDIANTES DEL RECINTO",37423,"45 Dias","2019-06-08"]
["EPH","2019-04-24","B1500000029","Rafael Arnaldo Sosa Liriano","EPH-ADQUISICION DE REMANENTE DE ALIMENTACION PARA ESTUDIANTES DEL RECINTO",2975,"45 Dias","2019-06-08"]
["EPH","2019-05-10","B1500000030","Rafael Arnaldo Sosa Liriano","EPH-ADQUISICION DE REMANENTE DE ALIMENTACION PARA USO DEL RECINTO",5675,"45 Dias","2019-06-24"]
["EMH","2016-12-31","A0200200022600000004","Ramon Valdez Perez","EMH-fact A0200200022600000004 DEL EMH/Ramon Valdez/PERIODO 2012",11600,"45 Dias",{"$f":"+B344+45","v":"2017-02-14"}]
["LNM","2024-04-02","B1500000378","RANRAIBY, SRL","LNM- SERVICIO DE CATERING VARIAS ACTIVIDADES ACADEMICAS DEL RECINTO.",1008841,"45 Dias","2024-05-17"]
["REC","2024-01-15","0022","RENZO RONCAGLIOLO","REC-PAGO FACT. 0022, CORRESP. AL 40% ULTIMO PAGO CONTRATACION CONSULTORIA PARA ELABORACION LIBRO...",354708,"45 Dias","2024-02-29"]
["REC","2019-10-07","B1500000010","RHUMAN SITE, SRL","REC-CURSOS LEADER HAPPINESS OFFICER",270279,"45 Dias","2019-11-21"]
["JVM","2023-11-14","B1500001171","Rogelio Antonio Ureña Paredes","JVM-ADQUISICION DE ALIMENTOS Y BEBIDAS",127351.11,"45 Dias","2023-12-29"]
["JVM","2023-11-14","B1500001169","Rogelio Antonio Ureña Paredes","JVM-COMPRA DE ALIMENTACIÓN",66600.009999999995,"45 Dias","2023-12-29"]
["JVM","2024-03-14","B1500001177","Rogelio Antonio Ureña Paredes","JVM- COMPRA DE ALIMENTOS.",34450.379999999997,"45 Dias","2024-04-28"]
["JVM","2024-03-14","B1500001178","Rogelio Antonio Ureña Paredes","JVM-ADQUISICION DE PRODUCTOS PARA ELABORACION DE LOS ALIMENTOS OR. 2023-00473",14220.26,"45 Dias","2024-04-28"]
["JVM","2024-05-28","B1500001182","Rogelio Antonio Ureña Paredes","JVM-ADQUISICION DE PRODUCTOS PARA LOS ALIMEN (PENDIENTE DE RECIBIR)",70944,"45 Dias","2024-07-12"]
["JVM","2024-05-28","B1500001183","Rogelio Antonio Ureña Paredes","JVM-ADQUISICION DE PRODUCTOS PARA LOS ALIMEN (PENDIENTE DE RECIBIR)",30450,"45 Dias","2024-07-12"]
["JVM","2024-05-28","B1500001181","Rogelio Antonio Ureña Paredes","JVM-ADQUISICION DE ALIMENTOS (PENDIENTE DE RECIBIR)",86751,"45 Dias","2024-07-12"]
["FEM","2016-12-31","A010010010100002460","S & G Computer SRL","FEM-fact A010010010100002460/ FEM/ S &G Computer /Periodo 2012",52020,"45 Dias",{"$f":"+B355+45","v":"2017-02-14"}]
[{"$f":"+MID([1]!Tabla1[[#This Row],[Concepto]],1,3)","v":{"$error":"#REF!"}},"2023-06-21","B1500001145","SABE MG, SRL","REC-SERVICIOS DE ALMUERZOS PRE-EMPACADOS. OR-2023-0047",20921.400000000001,"45 Dias","2023-08-05"]
["REC","2024-04-01","B1500000178","Sanfra Foods & Catering SRL","REC- SERCIO DE CATERING PARA DIFERENTES TALLERES Y ACTIVIDADES DEL INSTITUTO OR. 2023-00715",311115.84999999998,"45 Dias","2024-05-16"]
["REC","2024-05-01","B1500000183","Sanfra Foods & Catering SRL","REC- SERVICIO DE CATERING PARA DIFERENTES TALLERES Y ACTIVIDADES DEL INSTITUTO OR. 2023-00715",161928.45000000001,"45 Dias","2024-06-15"]
["REC","2024-05-03","B1500000184","Sanfra Foods & Catering SRL","REC- SERVICIO DE CATERING PARA DIFERENTES TALLERES Y ACTIVIDADES DEL INSTITUTO OR. 2023-00511",55619.3,"45 Dias","2024-06-17"]
["UM","2024-05-17","B1500003476","SANTOS BALLAS SRL","UM-ADQUISICION DE AGUA EMBOTELLADA USO DEL RECINTO OR.2023-00403",55365,"45 Dias","2024-07-01"]
["REC","2024-05-23","B1500011935","SEGURO NACIONAL DE SALUD","REC-SEGURO COMPLEMENTARIO PARA EMPLEADOS DEL ISFODOSU JUNIO 2024",724243.8,"45 Dias","2024-07-07"]
["REC","2024-04-17","B1500048365","Seguros Banreservas","REC-RENOVACION POLIZA SEGURO VEHICULO INSTITUCIONAL, PERIODO 03/05/2024 AL 03/05/2025",9097.0400000000009,"45 Dias","2024-06-01"]
["REC","2024-05-13","B0400297295","Seguros Banreservas","REC- NC AFECTA NCF: B1500048395, POR EXCLUSIÓN DE UN VEHICULO.",-9097.0400000000009,"45 Dias",{"$f":"+B363+45","v":"2024-06-27"}]
["REC","2024-05-17","E450000000492","SEGUROS UNIVERSAL, SA","REC-SEGURO COMPLEMENTARIO EMPLEADOS DEL ISFODOSU JUNIO 2024",65220,"45 Dias","2024-07-01"]
["REC","2024-05-17","E450000000483","SEGUROS UNIVERSAL, SA","REC-SEGURO COMPLEMENTARIO EMPLEADOS DEL ISFODOSU JUNIO 2024",113896,"45 Dias","2024-07-01"]
["JVM","2024-05-13","B1500000981","SERVICIOS EMPRESARIALES CANAAN, SRL.","JVM-ADQUISICION DE TICKETS PREPAGO DE COMBUSTIBLES PARA LOS VEHICULOS",117000,"45 Dias","2024-06-27"]
["EMH","2024-05-21","B1500000987","SERVICIOS EMPRESARIALES CANAAN, SRL.","EMH-ADQUISICION DE TICKETS PREPAGO DE COMBUSTIBLES  (PENDIENTE DE RECIBIR)",67400,"45 Dias","2024-07-05"]
["LNM","2024-04-29","B1500000195","SERVICIOS LOGISTICOS EXPRESS, SRL","LNM- MANTENIMIENTO DE LOS EXTINTORES DEL RECINTO.OR. 2023-00639",20319.599999999999,"45 Dias","2024-06-13"]
["REC","2024-05-01","B1500000398","SISTEMAS Y TECNOLOGIA, S.R.L.","REC-ADQUISICION Y RENOVACION DE SOFTWARES, DIRIGIDO A MIPYMES",903000,"45 Dias","2024-06-15"]
["REC","2020-07-20","B1500000129","SITCORP, SRL","REC- CIERRE DE PROYECTO DYNAMICS AX",464594.84,"45 Dias","2020-09-03"]
["JVM","2024-05-09","B1500000250","SLYKING GROUP, SRL","JVM-COMPRA DE ALIMENTOS PARA LOS ESTUDIANTES OR. 2023-00469",96162,"45 Dias","2024-06-23"]
["JVM","2024-05-24","B1500000769","SOLDIER ELECTRONIC SECURITY SES, SRL","JVM-COMPRA DE MAQUINA CORTA GRAMA (PENDIENTE DE RECIBIR)",43000,"45 Dias","2024-07-08"]
["FEM","2024-04-08","B1500000089","SOLVALMEN, SRL","FEM-ADQUISICION DE UTENSILIOS DE COCINA PARA USO DE LA COCINA Y EL COMEDOR  OR. 2024-00085",193039.31,"45 Dias","2024-05-23"]
["FEM","2024-05-22","B1500000096","SOLVALMEN, SRL","FEM-ADQUISICION DE UTENSILIOS DE COCINA PARA USO DE LA COCINA Y EL COMEDOR  (PENDIENTE DE RECIBIR)",260497.98,"45 Dias","2024-07-06"]
["REC","2024-05-01","B1500000321","STAGE VISUAL SOUND SVS, SRL.","REC-SERVICIO DE MONTAJE GRADUACIÓN EXTRAORDINARIA, ABRIL 2024",800000.51,"45 Dias","2024-06-15"]
["JVM","2019-11-25","B1500000108","SUPLIDORA INDUSTRIAL DOMINICANA, S.R.L.","JVM-COMPRA DE PARAGUAS,POLOSHERT SERIGRAFIADOS  (PENDIENTE ESPERA DE EXPEDIENTE)",141305,"45 Dias","2020-01-09"]
["REC","2024-05-06","B1500000967","SUPLIGENSA, S.R.L.","REC-ADQUISICION DE INSUMOS DE LIMPIEZA",57466,"45 Dias","2024-06-20"]
["LNM","2023-09-20","B1500000535","SUPLIMADE COMERCIAL, SRL","LNM-ADQUISICION DE DISPENSADORA DE AGUA PARA EL RECINTO ORDEN 2023-00549",96955.59,"45 Dias","2023-11-04"]
["FEM","2024-01-16","B1500000646","SUPLIMADE COMERCIAL, SRL","FEM-COMPRA DE ALIMENTOS (PENDIENTE)",70326.899999999994,"45 Dias","2024-03-01"]
["JVM","2024-01-16","B1500000645","SUPLIMADE COMERCIAL, SRL","JVM-COMPRA DE ALIMENTOS",60738.61,"45 Dias","2024-03-01"]
["JVM","2024-01-25","B1500000659","SUPLIMADE COMERCIAL, SRL","JVM-COMPRA DE ALIMENTOS",83586.36,"45 Dias","2024-03-10"]
["LNM","2024-01-30","B1500000664","SUPLIMADE COMERCIAL, SRL","LNM-COMPRA DE ALIMENTOS",1522451.77,"45 Dias","2024-03-15"]
["FEM","2024-02-22","B1500000696","SUPLIMADE COMERCIAL, SRL","FEM-COMPRA DE ALIMENTOS (PENDIENTE)",120957.55,"45 Dias","2024-04-07"]
["FEM","2024-02-22","B1500000695","SUPLIMADE COMERCIAL, SRL","FEM-COMPRA DE ALIMENTOS (PENDIENTE)",152684.45000000001,"45 Dias","2024-04-07"]
["LNM","2024-02-28","B1500000701","SUPLIMADE COMERCIAL, SRL","LNM-COMPRA DE ALIMENTOS",1618462.67,"45 Dias","2024-04-13"]
["JVM","2024-02-29","B1500000713","SUPLIMADE COMERCIAL, SRL","JVM-COMPRA DE ALIMENTOS",115377.83,"45 Dias","2024-04-14"]
["JVM","2024-03-25","B1500000730","SUPLIMADE COMERCIAL, SRL","JVM-COMPRA DE ALIMENTOS OR..2023-00368",94829.32,"45 Dias","2024-05-09"]
["FEM","2024-03-26","B1500000732","SUPLIMADE COMERCIAL, SRL","FEM-COMPRA DE ALIMENTOS CERT.2022-0008 (PENDIENTE DE RECIBIR)",54410,"45 Dias","2024-05-10"]
["JVM","2024-04-08","B1500000743","SUPLIMADE COMERCIAL, SRL","JVM-ALIMENTOS PARA CONSUMO DE LOS ESTUDIANES DEL RECINTO",87649.8,"45 Dias","2024-05-23"]
["FEM","2024-04-24","B1500000752","SUPLIMADE COMERCIAL, SRL","FEM-COMPRA DE ALIMEMTOS PARA LOS ESTUDIANTES OR.2024-00106",31658.26,"45 Dias","2024-06-08"]
["FEM","2024-04-24","B1500000753","SUPLIMADE COMERCIAL, SRL","FEM-COMPRA DE ALIMENTOS PARA LOS ESTUDIANTES (PENDIENTE)",152444.16,"45 Dias","2024-06-08"]
["FEM","2024-04-24","B1500000754","SUPLIMADE COMERCIAL, SRL","FEM-COMPRA DE ALIMENTOS PARA LOS ESTUDIANTES (PENDIENTE)",53589.599999999999,"45 Dias","2024-06-08"]
["LNM","2024-04-25","B1500000756","SUPLIMADE COMERCIAL, SRL","LNM- COMPRA DE ALIMENTOS PARA EL RECINTO. (PENDIENTE DE RECIBIR)",1551129.5,"45 Dias","2024-06-09"]
["LNM","2024-04-25","B1500000757","SUPLIMADE COMERCIAL, SRL","LNM- COMPRA DE ALIMENTOS PARA EL RECINTO OR. 2022-0008",846245.77,"45 Dias","2024-06-09"]
["LNM","2024-04-25","B1500000761","SUPLIMADE COMERCIAL, SRL","LNM- COMPRA DE ALIMENTOS PARA EL RECINTO OR. 2023-00368",35004.94,"45 Dias","2024-06-09"]
[{"$f":"MID(E396,1,3)","v":"LNM"},"2024-04-25","B1500000759","SUPLIMADE COMERCIAL, SRL","LNM- COMPRA DE ALIMENTOS PARA EL RECINTO OR. 2023-00519",14517,"45 Dias","2024-06-09"]
["LNM","2024-04-25","B1500000760","SUPLIMADE COMERCIAL, SRL","LNM- COMPRA DE ALIMENTOS PARA EL RECINTO OR 2023-00167",52125.09,"45 Dias","2024-06-09"]
["LNM","2024-04-25","B1500000762","SUPLIMADE COMERCIAL, SRL","LNM- COMPRA DE ALIMENTOS PARA EL RECINTO OR.2023-00692",3363,"45 Dias","2024-06-09"]
["LNM","2024-04-30","B0300000008","SUPLIMADE COMERCIAL, SRL","LNM- ND AFECTA NCF: B1500000730 POR ERROR EN PRECIO.",1754.42,"45 Dias","2024-06-14"]
["JVM","2024-05-14","B1500000786","SUPLIMADE COMERCIAL, SRL","JVM-ALIMENTOS PARA LOS ESTUDIANTES DEL RECINTO OR. 2023-018",40991.43,"45 Dias","2024-06-28"]
["FEM","2024-05-14","B1500000789","SUPLIMADE COMERCIAL, SRL","FEM-COMPRA DE ALIMENTOS PARA LOS ESTUDIANTES",135910,"45 Dias","2024-06-28"]
["FEM","2024-05-14","B1500000787","SUPLIMADE COMERCIAL, SRL","FEM-COMPRA DE ALIMENTOS PARA LOS ESTUDIANTES (PENDIENTE DE RECIBIR)",57755.81,"45 Dias","2024-06-28"]
["UM","2024-05-22","B1500000793","SUPLIMADE COMERCIAL, SRL","UM-ALIMENTOS PARA LOS ESTUDIANTES DEL RECINTO OR.2024-00093",25622.52,"45 Dias","2024-07-06"]
["FEM","2024-05-27","B0300000009","SUPLIMADE COMERCIAL, SRL","FEM-Nota de debito que afecta factura B1500000646",368.85,"45 Dias","2024-07-11"]
["LNM","2024-05-29","B1500000802","SUPLIMADE COMERCIAL, SRL","LNM-ALIMENTOS PARA LOS ESTUDIANTES",1763734.69,"45 Dias","2024-07-13"]
["LNM","2024-05-29","B1500000804","SUPLIMADE COMERCIAL, SRL","LNM-ALIMENTOS PARA LOS ESTUDIANTES",20232,"45 Dias","2024-07-13"]
["LNM","2024-05-29","B1500000803","SUPLIMADE COMERCIAL, SRL","LNM-ALIMENTOS PARA LOS ESTUDIANTES",115970.4,"45 Dias","2024-07-13"]
["LNM","2024-05-29","B1500000805","SUPLIMADE COMERCIAL, SRL","LNM-ALIMENTOS PARA LOS ESTUDIANTES",48018.93,"45 Dias","2024-07-13"]
["LNM","2024-05-29","B1500000806","SUPLIMADE COMERCIAL, SRL","LNM-ALIMENTOS PARA LOS ESTUDIANTES",84543.07,"45 Dias","2024-07-13"]
["LNM","2024-05-29","B1500000807","SUPLIMADE COMERCIAL, SRL","LNM-ALIMENTOS PARA LOS ESTUDIANTES",6726,"45 Dias","2024-07-13"]
["LNM","2024-05-29","B1500000808","SUPLIMADE COMERCIAL, SRL","LNM-ALIMENTOS PARA LOS ESTUDIANTES",38152.199999999997,"45 Dias","2024-07-13"]
["LNM","2024-05-29","B1500000809","SUPLIMADE COMERCIAL, SRL","LNM-ALIMENTOS PARA LOS ESTUDIANTES",22088.89,"45 Dias","2024-07-13"]
["UM","2024-05-08","B1500000218","TA BUENO CAFETERIA, SRL","UM-SERVICIOS DE CATERING PARA DIFETRENTES ACTIVIDADES DEL RECINTO",6490,"45 Dias","2024-06-22"]
["UM","2024-05-08","B1500000217","TA BUENO CAFETERIA, SRL","UM-SERVICIOS DE CATERING PARA DIFETRENTES ACTIVIDADES DEL RECINTO",150597.5,"45 Dias","2024-06-22"]
["FEM","2016-12-31","P010010010108132432 ","Technalab , S.A","FEM-fact P010010010108132432 /FEM/Technalab/periodo 2014",14455,"45 Dias",{"$f":"+B415+45","v":"2017-02-14"}]
["REC","2024-03-25","B1500000788","Teorema C-E, SRL","REC-SERVICIO DE CAPACITACION PARA EMPLEADOS OR. 2023-00682",945400,"45 Dias","2024-05-09"]
["JVM","2024-05-07","E450000003201","TROPIGAS DOMINICANA ,SRL","JVM-COMPRA DE GAS LICUADO DE PETROLEO",18840,"45 Dias","2024-06-21"]
["REC","2024-05-02","B1500001303","TROVASA HAND WASH, SRL","REC-LAVADO DE FLOTILLA VEHICULAR PERTECNECIENTE A LA RECTORIA OR. 2024-00133",198,"45 Dias","2024-06-16"]
["UM","2016-12-31","A010010010100002460","TV Cable San Juan","    UM-PARA INGRESAR LA CX P TV CABLE SAN JUAN AL 31/12/2016 *UM",7080,"45 Dias",{"$f":"+B419+45","v":"2017-02-14"}]
["REC","2024-04-26","CO-2024-000301","UNIVERSIDAD DE VIGO","REC-4TO.PAGO POR PRESTACION DE SEVICIOS: LINEA DE INVESTIGACION EN ALFABETIZACION FISICA Y EDUCA...",288818.82,"45 Dias","2024-06-10"]
["REC","2024-05-01","B1500003951","Universidad Tecnologica de Santiago","REC-CONVENIO ESPECIFICO USO DE SALON PARA EL DESARROLLO DEL DIPLOMADO LIDERAZGO PEDAGOGICO CI-00...",6164880,"45 Dias","2024-06-15"]
["REC","2024-05-01","B0400001090","Universidad Tecnologica de Santiago","REC- NC AFECTA NCF: B1500003951 POR BAJA DE PARTICIPANTES AL FINALIZAR EL DIPLOMADO",-674471.6,"45 Dias",{"$f":"+B422+45","v":"2024-06-15"}]
["FEM","2024-03-11","B0400000006","UVRO SOLUCIONES EMPRESARIALES, SRL","FEM-N/C AFECTA FACT. B1500000344",-1000,"45 Dias","2024-04-25"]
["FEM","2024-04-08","B1500000366","UVRO SOLUCIONES EMPRESARIALES, SRL","FEM- ADQUISICION DE ALIMENTOS PARA LOS ESTUDIANTES DEL RECIENTO OR.2024-00113",41650,"45 Dias","2024-05-23"]
["FEM","2024-04-17","B1500000367","UVRO SOLUCIONES EMPRESARIALES, SRL","FEM- ADQUISICION DE ALIMENTOS PARA LOS ESTUDIANTES DEL RECIENTO",21230,"45 Dias","2024-06-01"]
["FEM","2024-05-01","B1500000371","UVRO SOLUCIONES EMPRESARIALES, SRL","FEM- ADQUISICION DE ALIMENTOS PARA LOS ESTUDIANTES",52380,"45 Dias","2024-06-15"]
["FEM","2024-05-08","B0400000007","UVRO SOLUCIONES EMPRESARIALES, SRL","FEM-N/C AFECTA FACT. B1500000366",-500,"45 Dias",{"$f":"+B427+45","v":"2024-06-22"}]
["FEM","2024-05-15","B1500000375","UVRO SOLUCIONES EMPRESARIALES, SRL","FEM- ADQUISICION DE ALIMENTOS PARA LOS ESTUDIANTES",25180,"45 Dias","2024-06-29"]
["FEM","2024-05-29","B1500000379","UVRO SOLUCIONES EMPRESARIALES, SRL","FEM- ADQUISICION DE ALIMENTOS PARA LOS ESTUDIANTES",23880,"45 Dias","2024-07-13"]
["EMH","2016-12-31","A010010010200000201","V.R.O. Contratista","    EMH-fact A010010010200000201/EMH/V.R.O/ periodo 2013",15104,"45 Dias",{"$f":"+B430+45","v":"2017-02-14"}]
["JVM","2022-11-10","B1500000272","VEGETALES MAS Y SUERO JIMENEZ","JVM-COMPRA DE ALIMENTOS Y BEBIDAS PARA USO DEL RECINTO. OR-2020-00109",63710,"45 Dias","2022-12-25"]
["REC","2024-05-07","1662","VILLA DIGITAL, QUALITAS RED TECNOLOGICA","REC- CURSO TRANSFORMANDO LA PRACTICA DOCENTE. . 5,989.80 A RD$ 58.6624",351376.04,"45 Dias","2024-06-21"]
["REC","2015-11-16","A010010011500000354","Yaex Corp.de Operaciones Alimenticias","REC-REFRIGERIO Y ALMUERZO REUNION EQUIPO DE COMPRAS TODOS LOS RECINTOS",23735.7,"45 Dias","2015-12-31"]
["FEM","2024-01-04","B1500000183","YAXIS COMERCIAL, SRL","FEM-COMPRA DE ALIMENTOS",121675.16,"45 Dias","2024-02-18"]
["EMH","2024-03-14","B1500000214","YAXIS COMERCIAL, SRL","EMH-ADQUISICION DE ALIMENTOS",37213.72,"45 Dias","2024-04-28"]
["EMH","2024-04-03","B1500000221","YAXIS COMERCIAL, SRL","EMH-ADQUISICION DE ALIMENTOS PARA LOS ESTUDIANTES DEL RECINTO",51800,"45 Dias","2024-05-18"]
["EMH","2024-04-03","B1500000220","YAXIS COMERCIAL, SRL","EMH-ADQUISICION DE ALIMENTOS PARA ESTUDIANTES DEL RECINTO.",60071.47,"45 Dias","2024-05-18"]
["FEM","2024-04-04","B1500000223","YAXIS COMERCIAL, SRL","FEM-COMPRA DE ALIMENTOS PARA LA OPERATIVIDAD DEL RECINTO",106200,"45 Dias","2024-05-19"]
["EMH","2024-04-19","B1500000229","YAXIS COMERCIAL, SRL","EMH- COMPRA DE GUINEO MADURO. OR.2023-00130",34792.800000000003,"45 Dias","2024-06-03"]
["UM","2024-05-02","B1500000235","YAXIS COMERCIAL, SRL","UM- COMPRA DE ALIMENTOS PARA LOS ESTUDIANTES OR.2024-00091",26154.7,"45 Dias","2024-06-16"]
["EMH","2024-05-02","B1500000232","YAXIS COMERCIAL, SRL","EMH- COMPRA DE ALIMENTOS PARA LOS ESTUDIANTES OR.2023-00752",48201.36,"45 Dias","2024-06-16"]
["EMH","2024-05-02","B1500000233","YAXIS COMERCIAL, SRL","EMH- COMPRA DE ALIMENTOS PARA LOS ESTUDIANTES OR.2023-00738",38475,"45 Dias","2024-06-16"]
["EMH","2024-05-02","B1500000234","YAXIS COMERCIAL, SRL","EMH- COMPRA DE ALIMENTOS PARA LOS ESTUDIANTES OR.2024-0043",8893.5,"45 Dias","2024-06-16"]
["EMH","2024-05-09","B1500000238","YAXIS COMERCIAL, SRL","EMH- COMPRA DE ALIMENTOS PARA LOS ESTUDIANTES OR.2023-00752",155953.46,"45 Dias","2024-06-23"]
["EMH","2024-05-09","B1500000239","YAXIS COMERCIAL, SRL","EMH- COMPRA DE ALIMENTOS PARA LOS ESTUDIANTES OR.2023-00738",52900,"45 Dias","2024-06-23"]
["UM","2024-05-09","B1500000237","YAXIS COMERCIAL, SRL","UM- CONFECCION DE UNIFORMES PARA EL PERSONAL OR. 2024-00674",1693571.4,"45 Dias","2024-06-23"]
["EPH","2024-05-24","B1500000242","YAXIS COMERCIAL, SRL","EPH- COMPRA DE MEDALLAS Y PLACAS OR.2024-00054",21319.65,"45 Dias","2024-07-08"]
["REC","2024-05-24","B1500000243","YAXIS COMERCIAL, SRL","REC- COMPRA DE FLORES PARA EL DIA DE LA MUJER OR.2024-00029",47554,"45 Dias","2024-07-08"]
["FEM","2024-05-24","B1500000244","YAXIS COMERCIAL, SRL","FEM-COMPRA DE ALIMENTOS PARA LA OPERATIVIDAD DEL RECINTO",286740,"45 Dias","2024-07-08"]
["UM","2024-05-29","B1500000246","YAXIS COMERCIAL, SRL","UM- ADQUISICIÓN DE ALIMENTOS ORDEN 2024-00091",73233.16,"45 Dias","2024-07-13"]
["UM","2024-05-29","B1500000245","YAXIS COMERCIAL, SRL","UM- ADQUISICIÓN DE ARTICULOS DE LIMPIEZA E HIGINE  ORDEN 2023-00540",17027.400000000001,"45 Dias","2024-07-13"]
[{"$f":"MID(E452,1,3)","v":"EMH"},"2024-05-31","B1500000247","YAXIS COMERCIAL, SRL","EMH- COMPRA DE ALIMENTOS (PENDIENTE DE RECIBIR)",1743.7,"45 Dias","2024-07-15"]
[null,null,"Total",null,null,{"$f":"SUBTOTAL(109,Table1[ Monto de la Deuda RD$ ])","v":98202902.099999994}]
[]
[]
[]
[]
[]
[]
[]
[]
[]
[]
[]
[]
[]
[]
[]
[]
["LIC JOSE ERNESTO JIMENEZ"]
["DIRECTOR FINANCIERO, ISFODOSU"]